Workbook

Sheet Home
B6: Public Safety and Security Response Capability Calculator
B11: A tool for law enforcement and public safety agencies to use to estimate the number of crowd control and perimeter/checkpoint teams necessary to respond to a security event.

Sheet Your Info
B7: Event Information
C10: Expected number of attendees | H10: 25000
C11: Length of event | H11: 6
C12: Number of officer shifts | H12: 1
C13: How often does this kind of event occur? | H13: 1
B16: Crowd Control Factors
C19: Will your jurisdiction provide crowd control security for this event? | J19: Yes
C21: Desired officer-to-attendee ratio | G21: 1 officer per | H21: 500
C23: Suggested number of Crowd Control Teams | H23: =IF(CCInput="Yes",ROUNDUP((EventAttendees/EventOfficerAttendeeRatio)/SUM(CCPersonnel),0),0) -> 1
R26: Results
B27: Perimeter/Checkpoint Factors | R27: Perimeter
R28: =IF(PCInput="yes",IF(PCPerimeterTypeInput="Single", G34, G36+G37),0) -> 500
R29: Checkpoints
C30: Will your jurisdiction provide perimeter security for this event? | J30: Yes | R30: =IF(OR(PCInput="No",PCCheckpointInput="No"),0,IF(PCPerimeterTypeInput="single",H41,H43+H44)) -> 4
C32: Does the event require a single or double perimeter? | J32: Single
C34: Length of perimeter | G34: 500
C36: Length of outer perimeter | G36: 500
C37: Length of inner perimeter | G37: 200
C39: Will your jurisdiction provide checkpoint/access point security for this event? | K39: Yes
C41: Number of access points for perimeter | H41: 4
C43: Number of access points for outer perimeter | H43: 1
C44: Number of access points for inner perimeter | H44: 1

Sheet Crowd Control Team Needs
B7: Your suggested capability is | F7: =CCNumTeams -> 1 | G7: Crowd Control Team(s).
B9: Crowd Control Equipment | N9: =SUM(N12:N19) -> 95910
B11: Item Description | J11: Default Quantity per Team | K11: Quantity per Team | L11: Total Quantity | M11: Unit Cost | N11: Total Initial Cost
B12: =EquipmentCrowdControl!A3 -> "Grenade" Launcher | J12: 30 | K12: 30 | L12: =K12*CCNumTeams -> 30 | M12: 2500 | N12: =L12*M12 -> 75000
B13: =EquipmentCrowdControl!A4 -> Smoke grenades | J13: 150 | K13: 150 | L13: 150 | M13: 25 | N13: =L13*M13 -> 3750
B14: =EquipmentCrowdControl!A5 -> "Grenades" | J14: 150 | K14: 150 | L14: 150 | M14: 35 | N14: 5250
B15: =EquipmentCrowdControl!A6 -> Fogger | J15: 30 | K15: 30 | L15: 30 | M15: 26 | N15: 780
B16: =EquipmentCrowdControl!A7 -> Oleoresin Capsicum Fog Cartridge | J16: 90 | K16: 90 | L16: 90 | M16: 45 | N16: 4050
B17: =EquipmentCrowdControl!A8 -> Riot control batons | J17: 59 | K17: 59 | L17: 59 | M17: 35 | N17: 2065
B18: =EquipmentCrowdControl!A9 -> Bullhorns | J18: 59 | K18: 59 | L18: 59 | M18: 80 | N18: 4720
B19: =EquipmentCrowdControl!A10 -> Pepper spray | J19: 59 | K19: 59 | L19: 59 | M19: 5 | N19: 295
L20: Total Initial Cost: | N20: =SUM(N12:N19) -> 95910
B24: Vehicles | N24: =SUM(N27:N28) -> 180000
B26: Item Description | J26: Default Quantity per Team | K26: Quantity per Team | L26: Total Quantity | M26: Unit Cost | N26: Total Initial Cost
B27: =EquipmentCrowdControl!A16 -> Patrol Vehicles | J27: 14 | K27: 14 | L27: =K27*CCNumTeams -> 14 | M27: 10000 | N27: =M27*L27 -> 140000
B28: =EquipmentCrowdControl!A17 -> Prisoner Transport Vans | J28: 2 | K28: 2 | L28: =K28*CCNumTeams -> 2 | M28: 20000 | N28: =M28*L28 -> 40000
L29: Total Initial Cost: | N29: =SUM(N27:N28) -> 180000
B33: Mass Arrest Kit | N33: =SUM(N36:N38) -> 14100
B35: Item Description | J35: Default Quantity per Team | K35: Quantity per Team | L35: Total Quantity | M35: Unit Cost | N35: Total Initial Cost
B36: =EquipmentCrowdControl!A12 -> Weather-resistant Field Booking forms | J36: 30 | K36: 30 | L36: =K36*CCNumTeams -> 30 | M36: 40 | N36: =M36*L36 -> 1200
B37: =EquipmentCrowdControl!A13 -> Digital camera | J37: 30 | K37: 30 | L37: =K37*CCNumTeams -> 30 | M37: 400 | N37: =M37*L37 -> 12000
B38: =EquipmentCrowdControl!A14 -> Fingerprinting equipment | J38: 30 | K38: 30 | L38: =K38*CCNumTeams -> 30 | M38: 30 | N38: 900
L39: Total Initial Cost: | N39: =SUM(N36:N38) -> 14100
B43: Officer Equipment | N43: =SUM(N46:N74) -> 231657
B45: Item Description | J45: Default Quantity per Team | K45: Quantity per Team | L45: Total Quantity | M45: Unit Cost | N45: Total Initial Cost
B46: =EquipmentCrowdControl!A19 -> Soft Body Armor | J46: 59 | K46: 59 | L46: =K46*CCNumTeams -> 59 | M46: 1000 | N46: =M46*L46 -> 59000
B47: =EquipmentCrowdControl!A20 -> Portable Radios | J47: 59 | K47: 59 | L47: 59 | M47: 570 | N47: =M47*L47 -> 33630
B48: =EquipmentCrowdControl!A21 -> Battery charger | J48: 6 | K48: 6 | L48: 6 | M48: 325 | N48: 1950
B49: =EquipmentCrowdControl!A22 -> Respiratory mask (NIOSH-approved) | J49: 59 | K49: 59 | L49: 59 | M49: 300 | N49: 17700
B50: =EquipmentCrowdControl!A23 -> Safety glasses | J50: 59 | K50: 59 | L50: 59 | M50: 3 | N50: 177
B51: =EquipmentCrowdControl!A24 -> Ear protection | J51: 59 | K51: 59 | L51: 59 | M51: 1 | N51: 59
B52: =EquipmentCrowdControl!A25 -> Fire extinguisher | J52: 30 | K52: 30 | L52: 30 | M52: 40 | N52: 1200
B53: =EquipmentCrowdControl!A26 -> Foul-weather gear | J53: 59 | K53: 59 | L53: 59 | M53: 15 | N53: 885
B54: =EquipmentCrowdControl!A27 -> Handheld shields | J54: 59 | K54: 59 | L54: 59 | M54: 100 | N54: 5900
B55: =EquipmentCrowdControl!A28 -> Personal hydration system | J55: 59 | K55: 59 | L55: 59 | M55: 50 | N55: 2950
B56: =EquipmentCrowdControl!A29 -> Level C PPE suits | J56: 59 | K56: 59 | L56: 59 | M56: 200 | N56: 11800
B57: =EquipmentCrowdControl!A30 -> Shoulder fired weapons | J57: 0 | K57: 0 | L57: 0 | M57: 0 | N57: 0
B58: =EquipmentCrowdControl!A31 -> Safety Helmet | J58: 59 | K58: 59 | L58: 59 | M58: 30 | N58: 1770
B59: =EquipmentCrowdControl!A32 -> Vest or Outer Garment, High-visibility | J59: 59 | K59: 59 | L59: 59 | M59: 9 | N59: 531
B60: =EquipmentCrowdControl!A33 -> Handcuffs | J60: 59 | K60: 59 | L60: 59 | M60: 21 | N60: 1239
B61: =EquipmentCrowdControl!A34 -> Handcuff case | J61: 59 | K61: 59 | L61: 59 | M61: 16.5 | N61: 973.5
B62: =EquipmentCrowdControl!A35 -> Duty belt | J62: 59 | K62: 59 | L62: 59 | M62: 26 | N62: 1534
B63: =EquipmentCrowdControl!A36 -> Flashlight: MAG-LITE D-cell | J63: 59 | K63: 59 | L63: 59 | M63: 16 | N63: 944
B64: =EquipmentCrowdControl!A37 -> D-Cell Batteries (8) | J64: 59 | K64: 59 | L64: 59 | M64: 8 | N64: 472
B65: =EquipmentCrowdControl!A38 -> Flashlight holder (D-cell) | J65: 59 | K65: 59 | L65: 59 | M65: 5.75 | N65: 339.25
B66: =EquipmentCrowdControl!A39 -> Flex cuffs (10) | J66: 59 | K66: 59 | L66: 59 | M66: 11 | N66: 649
B67: =EquipmentCrowdControl!A40 -> Cutting tool for flex cuffs | J67: 59 | K67: 59 | L67: 59 | M67: 12.75 | N67: 752.25
B68: =EquipmentCrowdControl!A41 -> Knife | J68: 59 | K68: 59 | L68: 59 | M68: 107 | N68: 6313
B69: =EquipmentCrowdControl!A42 -> Waterproof Duty Boots | J69: 59 | K69: 59 | L69: 59 | M69: 124 | N69: 7316
B70: =EquipmentCrowdControl!A43 -> Regular Duty Boots | J70: 59 | K70: 59 | L70: 59 | M70: 65 | N70: 3835
B71: =EquipmentCrowdControl!A44 -> Regular Duty Gloves | J71: 59 | K71: 59 | L71: 59 | M71: 9 | N71: 531
B72: =EquipmentCrowdControl!A45 -> Kevlar-lined police leather gloves | J72: 59 | K72: 59 | L72: 59 | M72: 25 | N72: 1475
B73: =EquipmentCrowdControl!A46 -> Large rubber bands | J73: 59 | K73: 59 | L73: 59 | M73: 4 | N73: 236
B74: =EquipmentCrowdControl!A47 -> Handguns | J74: 59 | K74: 59 | L74: 59 | M74: 1144 | N74: 67496
L75: Total Initial Cost: | N75: =SUM(N46:N74) -> 231657
B79: Communications and Logistics Equipment | N79: =SUM(N82:N114) -> 1068334
B81: Item Description | J81: Default Quantity per Team | K81: Quantity per Team | L81: Total Quantity | M81: Unit Cost | N81: Total Initial Cost
B82: =EquipmentCrowdControl!A49 -> 75’ Portable Communications Towers | J82: 4 | K82: 4 | L82: =K82*CCNumTeams -> 4 | M82: 90000 | N82: =M82*L82 -> 360000
B83: =EquipmentCrowdControl!A50 -> Satellite Communications trailer with data, VoIP & video capability | J83: 2 | K83: 2 | L83: 2 | M83: 199000 | N83: =M83*L83 -> 398000
B84: =EquipmentCrowdControl!A51 -> 800 MHz 10 Watt Portable Repeaters | J84: 1 | K84: 1 | L84: 1 | M84: 8500 | N84: 8500
B85: =EquipmentCrowdControl!A52 -> 800 MHz 25 Watt Portable Repeaters | J85: 1 | K85: 1 | L85: 1 | M85: 8500 | N85: 8500
B86: =EquipmentCrowdControl!A53 -> 800 MHz Conventional Repeaters | J86: 1 | K86: 1 | L86: 1 | M86: 3934 | N86: 3934
B87: =EquipmentCrowdControl!A54 -> UHF Conventional Repeater | J87: 1 | K87: 1 | L87: 1 | M87: 4833 | N87: 4833
B88: =EquipmentCrowdControl!A55 -> UHF 10 Watt Portable Repeater | J88: 1 | K88: 1 | L88: 1 | M88: 1063 | N88: 1063
B89: =EquipmentCrowdControl!A56 -> VHF Conventional Repeater | J89: 1 | K89: 1 | L89: 1 | M89: 2500 | N89: 2500
B90: =EquipmentCrowdControl!A57 -> VHF 10 Watt Portable Repeater | J90: 1 | K90: 1 | L90: 1 | M90: 1063 | N90: 1063
B91: =EquipmentCrowdControl!A58 -> VHF, UHF & 800 MHz Desk Top Control Station | J91: 1 | K91: 1 | L91: 1 | M91: 10156 | N91: 10156
B92: =EquipmentCrowdControl!A59 -> 800 MHz Handheld Radios (Motorola XTS 2500) | J92: 1 | K92: 1 | L92: 1 | M92: 2500 | N92: 2500
B93: =EquipmentCrowdControl!A60 -> VHF Handheld Radios | J93: 1 | K93: 1 | L93: 1 | M93: 800 | N93: 800
B94: =EquipmentCrowdControl!A61 -> UHF Handheld Radios | J94: 1 | K94: 1 | L94: 1 | M94: 806 | N94: 806
B95: =EquipmentCrowdControl!A62 -> 6 bay rack chargers | J95: 1 | K95: 1 | L95: 1 | M95: 639 | N95: 639
B96: =EquipmentCrowdControl!A63 -> Law enforcement surveillance equipment | J96: 1 | K96: 1 | L96: 1 | M96: 5432 | N96: 5432
B97: =EquipmentCrowdControl!A64 -> Mapping/GIS Software | J97: 1 | K97: 1 | L97: 1 | M97: 40000 | N97: 40000
B98: =EquipmentCrowdControl!A65 -> Data Acquisition Software | J98: 1 | K98: 1 | L98: 1 | M98: 7040 | N98: 7040
B99: =EquipmentCrowdControl!A66 -> Data Exchange and Interoperability Software of System(s) | J99: 1 | K99: 1 | L99: 1 | M99: 40000 | N99: 40000
B100: =EquipmentCrowdControl!A67 -> Intelligence Sharing System | J100: 1 | K100: 1 | L100: 1 | M100: 60000 | N100: 60000
B101: =EquipmentCrowdControl!A68 -> Generator (14,000 Watts) | J101: 2 | K101: 2 | L101: 2 | M101: 3689 | N101: 7378
B102: =EquipmentCrowdControl!A69 -> Generator (7,000 Watts) | J102: 0 | K102: 0 | L102: 0 | M102: 2300 | N102: 0
B103: =EquipmentCrowdControl!A70 -> Video capture software | J103: 1 | K103: 1 | L103: 1 | M103: 50 | N103: 50
B104: =EquipmentCrowdControl!A71 -> Document Scanner | J104: 2 | K104: 2 | L104: 2 | M104: 450 | N104: 900
B105: =EquipmentCrowdControl!A72 -> Fax Machine: Canon L90 Laser | J105: 2 | K105: 2 | L105: 2 | M105: 100 | N105: 200
B106: =EquipmentCrowdControl!A73 -> Printer: HP LaserJet P4014N | J106: 2 | K106: 2 | L106: 2 | M106: 900 | N106: 1800
B107: =EquipmentCrowdControl!A74 -> Copy Machine: Canon MF6540 | J107: 2 | K107: 2 | L107: 2 | M107: 500 | N107: 1000
B108: =EquipmentCrowdControl!A75 -> Power strip (six outlet, surge protection) | J108: 10 | K108: 10 | L108: 10 | M108: 12 | N108: 120
B109: =EquipmentCrowdControl!A76 -> 40' Extension Cord | J109: 10 | K109: 10 | L109: 10 | M109: 32 | N109: 320
B110: =EquipmentCrowdControl!A77 -> Single-unit Rapid Charger | J110: 1 | K110: 1 | L110: 1 | M110: 60 | N110: 60
B111: =EquipmentCrowdControl!A78 -> 6 Unit Multi-Charger | J111: 1 | K111: 1 | L111: 1 | M111: 190 | N111: 190
B112: =EquipmentCrowdControl!A79 -> Microsoft Office/Adobe Acrobat | J112: 1 | K112: 1 | L112: 1 | M112: 200 | N112: 200
B113: =EquipmentCrowdControl!A80 -> ACU-1000 | J113: 1 | K113: 1 | L113: 1 | M113: 100000 | N113: 100000
B114: =EquipmentCrowdControl!A81 -> DC Power Electrical Rectifier system | J114: 1 | K114: 1 | L114: 1 | M114: 350 | N114: 350
L115: Total Initial Cost: | N115: =SUM(N82:N114) -> 1068334
B119: Personnel | N119: =SUM(N122:N129) -> 12048
B121: Item Description | H121: Default Quantity per Team | I121: Quantity per Team | J121: Number of Shifts | K121: Total Personnel | L121: Hours Deployed | M121: Hourly Wage/ Backfill | N121: Operational Cost
B122: Officer in Charge | H122: 1 | I122: 1 | J122: =EventShifts -> 1 | K122: =I122*J122*CCNumTeams -> 1 | L122: =EventLength -> 6 | M122: 52 | N122: =K122*L122*M122 -> 312
B123: Deputy OIC | H123: 1 | I123: 1 | J123: 1 | K123: 1 | L123: 6 | M123: 52 | N123: =K123*L123*M123 -> 312
B124: Supervisors | H124: 4 | I124: 4 | J124: 1 | K124: 4 | L124: 6 | M124: 52 | N124: 1248
B125: Counter Sniper | H125: 2 | I125: 2 | J125: 1 | K125: 2 | L125: 6 | M125: 32 | N125: 384
B126: Grenadiers | H126: 8 | I126: 8 | J126: 1 | K126: 8 | L126: 6 | M126: 32 | N126: 1536
B127: Officers | H127: 38 | I127: 38 | J127: 1 | K127: 38 | L127: 6 | M127: 32 | N127: 7296
B128: Prison Transport Officers | H128: 4 | I128: 4 | J128: 1 | K128: 4 | L128: 6 | M128: 32 | N128: 768
B129: Booking Personnel | H129: 1 | I129: 1 | J129: 1 | K129: 1 | L129: 6 | M129: 32 | N129: 192
L130: Total Initial Cost: | N130: =SUM(N122:N129) -> 12048
B134: Training | N134: =SUM(N138:N147)+SUM(N149:N157) -> 228096
B136: Item Description | I136: Default Quantity (personnel to receive training) | J136: Quantity | K136: Course hours | L136: Course cost | M136: Hourly Wage/ Backfill | N136: Total Cost
B137: Supervisors
B138: IS-100 | I138: =SUM(CCNumSupervisors) -> 6 | J138: 12 | K138: 3 | L138: 0 | M138: 52 | N138: =J138*K138*M138+L138 -> 1872
B139: IS-700 | I139: =SUM(CCNumSupervisors) -> 6 | J139: 12 | K139: 3 | L139: 0 | M139: 52 | N139: =J139*K139*M139+L139 -> 1872
B140: IS-800 | I140: 6 | J140: 12 | K140: 3 | L140: 0 | M140: 52 | N140: 1872
B141: IS-15.a Special Events Contingency Planning for Public Safety Agencies | I141: 6 | J141: 12 | K141: 5 | L141: 0 | M141: 52 | N141: 3120
B142: ICS-300 (G-300) | I142: 6 | J142: 12 | K142: 18 | L142: 0 | M142: 52 | N142: 11232
B143: Crowd Control Training | I143: 6 | J143: 12 | K143: 40 | L143: 0 | M143: 52 | N143: 24960
B144: Additional training | I144: 6 | J144: 12 | K144: 0 | L144: 0 | M144: 52 | N144: 0
B145: Additional training | I145: 6 | J145: 12 | K145: 0 | L145: 0 | M145: 52 | N145: 0
B146: Additional training | I146: 6 | J146: 12 | K146: 0 | L146: 0 | M146: 52 | N146: 0
B147: Additional training | I147: 6 | J147: 12 | K147: 0 | L147: 0 | M147: 52 | N147: 0
B148: Line Officers
B149: IS-100 | I149: =SUM(CCNumOfficers) -> 53 | J149: 106 | K149: 3 | L149: 0 | M149: 32 | N149: =J149*K149*M149+L149 -> 10176
B150: IS-700 | I150: 53 | J150: 106 | K150: 3 | L150: 0 | M150: 32 | N150: =J150*K150*M150+L150 -> 10176
B151: IS-800 | I151: 53 | J151: 106 | K151: 3 | L151: 0 | M151: 32 | N151: 10176
B152: IS-15.a Special Events Contingency Planning for Public Safety Agencies | I152: 53 | J152: 106 | K152: 5 | L152: 0 | M152: 32 | N152: 16960
B153: Crowd Control Training | I153: 53 | J153: 106 | K153: 40 | L153: 0 | M153: 32 | N153: 135680
B154: Additional training | I154: 53 | J154: 106 | K154: 0 | L154: 0 | M154: 32 | N154: 0
B155: Additional training | I155: 53 | J155: 106 | K155: 0 | L155: 0 | M155: 32 | N155: 0
B156: Additional training | I156: 53 | J156: 106 | K156: 0 | L156: 0 | M156: 32 | N156: 0
B157: Additional training | I157: 53 | J157: 106 | K157: 0 | L157: 0 | M157: 32 | N157: 0
L158: Total Initial Cost: | N158: =SUM(N138:N147)+SUM(N149:N157) -> 228096
B162: Custom Equipment | N162: =SUM(CCCustomEquipInitCosts) -> 0
B164: Item Description | J164: Quantity per Team | K164: Number of Teams | L164: Total Quantity | M164: Unit Cost | N164: Total Cost
B165: Custom equipment item | J165: 0 | K165: =CCNumTeams -> 1 | L165: =J165*K165 -> 0 | M165: 0 | N165: =L165*M165 -> 0
B166: Custom equipment item | J166: 0 | K166: 1 | L166: 0 | M166: 0 | N166: 0
B167: Custom equipment item | J167: 0 | K167: 1 | L167: 0 | M167: 0 | N167: 0
B168: Custom equipment item | J168: 0 | K168: 1 | L168: 0 | M168: 0 | N168: 0
B169: Custom equipment item | J169: 0 | K169: 1 | L169: 0 | M169: 0 | N169: 0
B170: Custom equipment item | J170: 0 | K170: 1 | L170: 0 | M170: 0 | N170: 0

Sheet Crowd Control Team Costs
J4: total
B8: Total Initial Costs for Crowd Control Team | M8: =L18 -> 1818097
I14: Equipment Initial Costs: | L14: =SUM(CCArrestKitInitCost,CCCommsLogsInitCost,CCCrowdEquipmentInitCost,CCOfficerEquipInitCost,CCVehicleInitCost) -> 1590001 | R14: Equipment Initial Costs: | S14: Training Initial Costs: | T14: User Input Equipment Initial Costs:
I15: Personnel Initial Costs: | L15: 0 | R15: =SUM(CCArrestKitInitCost,CCCommsLogsInitCost,CCCrowdEquipmentInitCost,CCOfficerEquipInitCost,CCVehicleInitCost) -> 1590001 | S15: =CCTrainingInitCost -> 228096 | T15: =SUM(CCCustomEquipInitCosts) -> 0
I16: Training Initial Costs: | L16: =CCTrainingInitCost -> 228096
I17: User Input Equipment Initial Costs: | L17: =SUM(CCCustomEquipInitCosts) -> 0
L18: =SUM(L14:M17) -> 1818097
B30: Total Annual Costs for Crowd Control Team | M30: =L40 -> 838331.35
J32: total
I36: Equipment Annual Costs: | L36: =CCEquipAllAnnCost -> 751947.35
I37: Personnel Annual Costs: | L37: =CCPersonnelAnnCost -> 12048 | S37: Equipment Annual Costs: | T37: Personnel Annual Costs: | U37: Training Annual Costs: | V37: User Input Equipment Annual Costs:
I38: Training Annual Costs: | L38: =CCTrainingAnnCost -> 74336 | S38: =CCEquipAllAnnCost -> 751947.35 | T38: =CCPersonnelAnnCost -> 12048 | U38: =CCTrainingAnnCost -> 74336 | V38: =SUM(CCCustomEquipAnnCost) -> 0
I39: User Input Equipment Annual Costs: | L39: =SUM(CCCustomEquipAnnCost) -> 0
L40: =SUM(L36:M39) -> 838331.35
J45: Number of expected deployments annually: | M45: =EventFrequency -> 1
K47: This can be changed on the User Input page.
B53: Annual Cost Breakdown
B56: Cost Factors | F56: (2) Energy | G56: (3) Operating | H56: (4) Repair | I56: (5) Upgrade
B57: Large Vehicle | F57: 0.36 | G57: 1200 | H57: 0.15 | I57: 0
B58: Small Vehicle | F58: 0.2 | G58: 1200 | H58: 0.15 | I58: 0
B59: Equipment (as a percentage of the initial cost) | F59: 0.1 | G59: 0.05 | H59: 0.1 | I59: 0.25
B62: Equipment Costs | P62: =CCEquipAllAnnCost -> 751947.35
B65: Item Description | F65: Annual Mileage | G65: Quantity | H65: Unit Cost | I65: (1) Initial | J65: Shelf Life | K65: R-Cost | L65: (2) Energy | M65: (3) Operating | N65: (4) Repair | O65: (5) Upgrade | P65: Annual Costs | Q65: Category Total
B66: Patrol Vehicles | F66: 12000 | G66: ='Crowd Control Team Needs'!L27 -> 14 | H66: ='Crowd Control Team Needs'!M27 -> 10000 | I66: =G66*H66 -> 140000 | J66: 10 | K66: =I66/J66 -> 14000 | L66: =F58*F66*G66 -> 33600 | M66: =G58*G66 -> 16800 | N66: =H58*F66*G66 -> 25200 | O66: =I58*G66 -> 0 | P66: =SUM(K66:O66) -> 89600
B67: Prisoner Transport Vans | F67: 12000 | G67: ='Crowd Control Team Needs'!L28 -> 2 | H67: ='Crowd Control Team Needs'!M28 -> 20000 | I67: =G67*H67 -> 40000 | J67: 10 | K67: =I67/J67 -> 4000 | L67: =F57*F67*G67 -> 8640 | M67: =G57*G67 -> 2400 | N67: =H57*F67*G67 -> 3600 | O67: =I57*G67 -> 0 | P67: =SUM(K67:O67) -> 18640 | Q67: =SUM(P66:P67) -> 108240
B68: ='Crowd Control Team Needs'!B12 -> "Grenade" Launcher | G68: ='Crowd Control Team Needs'!L12 -> 30 | H68: ='Crowd Control Team Needs'!M12 -> 2500 | I68: =G68*H68 -> 75000 | J68: 5 | K68: =I68/J68 -> 15000 | L68: 0 | M68: =0.05*I68 -> 3750 | N68: =0.1*I68 -> 7500 | O68: 0 | P68: =SUM(K68:O68) -> 26250
B69: ='Crowd Control Team Needs'!B13 -> Smoke grenades | G69: ='Crowd Control Team Needs'!L13 -> 150 | H69: ='Crowd Control Team Needs'!M13 -> 25 | I69: 3750 | J69: 1 | K69: =I69/J69 -> 3750 | L69: 0 | M69: 0 | N69: =0.1*I69 -> 375 | O69: 0 | P69: =SUM(K69:O69) -> 4125
B70: ='Crowd Control Team Needs'!B14 -> "Grenades" | G70: ='Crowd Control Team Needs'!L14 -> 150 | H70: ='Crowd Control Team Needs'!M14 -> 35 | I70: 5250 | J70: 1 | K70: 5250 | L70: 0 | M70: 0 | N70: 525 | O70: 0 | P70: =SUM(K70:O70) -> 5775
B71: ='Crowd Control Team Needs'!B15 -> Fogger | G71: ='Crowd Control Team Needs'!L15 -> 30 | H71: ='Crowd Control Team Needs'!M15 -> 26 | I71: 780 | J71: 1 | K71: 780 | L71: 0 | M71: 0 | N71: 78 | O71: 0 | P71: 858
B72: ='Crowd Control Team Needs'!B16 -> Oleoresin Capsicum Fog Cartridge | G72: ='Crowd Control Team Needs'!L16 -> 90 | H72: ='Crowd Control Team Needs'!M16 -> 45 | I72: 4050 | J72: 1 | K72: 4050 | L72: 0 | M72: 0 | N72: 405 | O72: 0 | P72: 4455
B73: ='Crowd Control Team Needs'!B17 -> Riot control batons | G73: ='Crowd Control Team Needs'!L17 -> 59 | H73: ='Crowd Control Team Needs'!M17 -> 35 | I73: 2065 | J73: 10 | K73: 206.5 | L73: 0 | M73: 0 | N73: 206.5 | O73: 0 | P73: 413
B74: ='Crowd Control Team Needs'!B18 -> Bullhorns | G74: ='Crowd Control Team Needs'!L18 -> 59 | H74: ='Crowd Control Team Needs'!M18 -> 80 | I74: 4720 | J74: 10 | K74: 472 | L74: =0.1*I74 -> 472 | M74: =0.05*I74 -> 236 | N74: 472 | O74: 0 | P74: 1652
B75: ='Crowd Control Team Needs'!B19 -> Pepper spray | G75: ='Crowd Control Team Needs'!L19 -> 59 | H75: ='Crowd Control Team Needs'!M19 -> 5 | I75: 295 | J75: 1 | K75: 295 | L75: 0 | M75: =0.05*I75 -> 14.75 | N75: 29.5 | O75: 0 | P75: 339.25 | Q75: =SUM(P68:P75) -> 43867.25
B76: Weather-resistant Field Booking Forms | G76: ='Crowd Control Team Needs'!L36 -> 30 | H76: ='Crowd Control Team Needs'!M36 -> 40 | I76: 1200 | J76: 1 | K76: 1200 | L76: 0 | M76: =0.05*I76 -> 60 | N76: =0.1*I76 -> 120 | O76: 0 | P76: 1380
B77: Digital camera | G77: ='Crowd Control Team Needs'!L37 -> 30 | H77: ='Crowd Control Team Needs'!M37 -> 400 | I77: 12000 | J77: 5 | K77: 2400 | L77: =0.1*I77 -> 1200 | M77: =0.05*I77 -> 600 | N77: =0.1*I77 -> 1200 | O77: =0.25*I77 -> 3000 | P77: 8400
B78: Fingerprinting equipment | G78: ='Crowd Control Team Needs'!L38 -> 30 | H78: ='Crowd Control Team Needs'!M38 -> 30 | I78: 900 | J78: 1 | K78: 900 | L78: =0.1*I78 -> 90 | M78: =0.05*I78 -> 45 | N78: =0.1*I78 -> 90 | O78: =0.25*I78 -> 225 | P78: 1350 | Q78: =SUM(P76:P78) -> 11130
B79: Soft Body Armor | G79: ='Crowd Control Team Needs'!L46 -> 59 | H79: ='Crowd Control Team Needs'!M46 -> 1000 | I79: 59000 | J79: 5 | K79: 11800 | L79: 0 | M79: 0 | N79: =0.1*I79 -> 5900 | O79: 0 | P79: 17700
B80: Portable Radios | G80: ='Crowd Control Team Needs'!L47 -> 59 | H80: ='Crowd Control Team Needs'!M47 -> 570 | I80: 33630 | J80: 5 | K80: 6726 | L80: =0.1*I80 -> 3363 | M80: =0.05*I80 -> 1681.5 | N80: 3363 | O80: 0 | P80: 15133.5
B81: Battery charger | G81: ='Crowd Control Team Needs'!L48 -> 6 | H81: ='Crowd Control Team Needs'!M48 -> 325 | I81: 1950 | J81: 5 | K81: 390 | L81: =0.1*I81 -> 195 | M81: =0.05*I81 -> 97.5 | N81: 195 | O81: 0 | P81: 877.5
B82: Respiratory mask (NIOSH-approved) | G82: ='Crowd Control Team Needs'!L49 -> 59 | H82: ='Crowd Control Team Needs'!M49 -> 300 | I82: 17700 | J82: 5 | K82: 3540 | L82: 0 | M82: =0.05*I82 -> 885 | N82: 1770 | O82: 0 | P82: 6195
B83: Safety glasses | G83: ='Crowd Control Team Needs'!L50 -> 59 | H83: ='Crowd Control Team Needs'!M50 -> 3 | I83: 177 | J83: 5 | K83: 35.4 | L83: 0 | M83: 0 | N83: 17.7 | O83: 0 | P83: 53.1
B84: Ear protection | G84: ='Crowd Control Team Needs'!L51 -> 59 | H84: ='Crowd Control Team Needs'!M51 -> 1 | I84: 59 | J84: 5 | K84: 11.8 | L84: 0 | M84: 0 | N84: 5.9 | O84: 0 | P84: 17.7
B85: Fire extinguisher | G85: ='Crowd Control Team Needs'!L52 -> 30 | H85: ='Crowd Control Team Needs'!M52 -> 40 | I85: 1200 | J85: 5 | K85: 240 | L85: 0 | M85: =0.05*I85 -> 60 | N85: 120 | O85: 0 | P85: 420
B86: Foul weather gear | G86: ='Crowd Control Team Needs'!L53 -> 59 | H86: ='Crowd Control Team Needs'!M53 -> 15 | I86: 885 | J86: 5 | K86: 177 | L86: 0 | M86: 0 | N86: 88.5 | O86: 0 | P86: 265.5
B87: Hand held shields | G87: ='Crowd Control Team Needs'!L54 -> 59 | H87: ='Crowd Control Team Needs'!M54 -> 100 | I87: 5900 | J87: 5 | K87: 1180 | L87: 0 | M87: 0 | N87: 590 | O87: 0 | P87: 1770
B88: Personal hydration system | G88: ='Crowd Control Team Needs'!L55 -> 59 | H88: ='Crowd Control Team Needs'!M55 -> 50 | I88: 2950 | J88: 5 | K88: 590 | L88: =0.1*I88 -> 295 | M88: =0.05*I88 -> 147.5 | N88: 295 | O88: 0 | P88: 1327.5
B89: Level C PPE suits | G89: ='Crowd Control Team Needs'!L56 -> 59 | H89: ='Crowd Control Team Needs'!M56 -> 200 | I89: 11800 | J89: 5 | K89: 2360 | L89: 0 | M89: =0.05*I89 -> 590 | N89: 1180 | O89: 0 | P89: 4130
B90: Shoulder fired weapons | G90: ='Crowd Control Team Needs'!L57 -> 0 | H90: ='Crowd Control Team Needs'!M57 -> 0 | I90: 0 | J90: 1 | K90: 0 | L90: 0 | M90: 0 | N90: 0 | O90: 0 | P90: 0
B91: Safety Helmet | G91: ='Crowd Control Team Needs'!L58 -> 59 | H91: ='Crowd Control Team Needs'!M58 -> 30 | I91: 1770 | J91: 5 | K91: 354 | L91: 0 | M91: 0 | N91: 177 | O91: 0 | P91: 531
B92: Vest or Outer Garment, High-visibility | G92: ='Crowd Control Team Needs'!L59 -> 59 | H92: ='Crowd Control Team Needs'!M59 -> 9 | I92: 531 | J92: 5 | K92: 106.2 | L92: 0 | M92: 0 | N92: =0.1*I92 -> 53.1 | O92: 0 | P92: 159.3
B93: Handcuffs | G93: ='Crowd Control Team Needs'!L60 -> 59 | H93: ='Crowd Control Team Needs'!M60 -> 21 | I93: 1239 | J93: 5 | K93: 247.8 | L93: 0 | M93: 0 | N93: 123.9 | O93: 0 | P93: 371.7
B94: Handcuff case | G94: ='Crowd Control Team Needs'!L61 -> 59 | H94: ='Crowd Control Team Needs'!M61 -> 16.5 | I94: 973.5 | J94: 5 | K94: 194.7 | L94: 0 | M94: 0 | N94: 97.35 | O94: 0 | P94: 292.05
B95: Duty belt | G95: ='Crowd Control Team Needs'!L62 -> 59 | H95: ='Crowd Control Team Needs'!M62 -> 26 | I95: 1534 | J95: 5 | K95: 306.8 | L95: 0 | M95: 0 | N95: 153.4 | O95: 0 | P95: 460.2
B96: Flashlight: MAG-LITE D-cell | G96: ='Crowd Control Team Needs'!L63 -> 59 | H96: ='Crowd Control Team Needs'!M63 -> 16 | I96: 944 | J96: 5 | K96: 188.8 | L96: =0.1*I96 -> 94.4 | M96: =0.05*I96 -> 47.2 | N96: 94.4 | O96: 0 | P96: 424.8
B97: D-Cell Batteries (8) | G97: ='Crowd Control Team Needs'!L64 -> 59 | H97: ='Crowd Control Team Needs'!M64 -> 8 | I97: 472 | J97: 1 | K97: 472 | L97: =0.1*I97 -> 47.2 | M97: =0.05*I97 -> 23.6 | N97: 47.2 | O97: 0 | P97: 590
B98: Flashlight holder (D-cell) | G98: ='Crowd Control Team Needs'!L65 -> 59 | H98: ='Crowd Control Team Needs'!M65 -> 5.75 | I98: 339.25 | J98: 5 | K98: 67.85 | L98: 0 | M98: 0 | N98: 33.925 | O98: 0 | P98: 101.775
B99: Flex cuffs (10) | G99: ='Crowd Control Team Needs'!L66 -> 59 | H99: ='Crowd Control Team Needs'!M66 -> 11 | I99: 649 | J99: 1 | K99: 649 | L99: 0 | M99: 0 | N99: 64.9 | O99: 0 | P99: 713.9
B100: Cutting tool for flex cuffs | G100: ='Crowd Control Team Needs'!L67 -> 59 | H100: ='Crowd Control Team Needs'!M67 -> 12.75 | I100: 752.25 | J100: 5 | K100: 150.45 | L100: 0 | M100: 0 | N100: 75.225 | O100: 0 | P100: 225.675
B101: Knife | G101: ='Crowd Control Team Needs'!L68 -> 59 | H101: ='Crowd Control Team Needs'!M68 -> 107 | I101: 6313 | J101: 5 | K101: 1262.6 | L101: 0 | M101: 0 | N101: 631.3 | O101: 0 | P101: 1893.9
B102: Waterproof Duty Boots | G102: ='Crowd Control Team Needs'!L69 -> 59 | H102: ='Crowd Control Team Needs'!M69 -> 124 | I102: 7316 | J102: 5 | K102: 1463.2 | L102: 0 | M102: 0 | N102: 731.6 | O102: 0 | P102: 2194.8
B103: Regular Duty Boots | G103: ='Crowd Control Team Needs'!L70 -> 59 | H103: ='Crowd Control Team Needs'!M70 -> 65 | I103: 3835 | J103: 5 | K103: 767 | L103: 0 | M103: 0 | N103: 383.5 | O103: 0 | P103: 1150.5
B104: Regular Duty Gloves | G104: ='Crowd Control Team Needs'!L71 -> 59 | H104: ='Crowd Control Team Needs'!M71 -> 9 | I104: 531 | J104: 5 | K104: 106.2 | L104: 0 | M104: 0 | N104: 53.1 | O104: 0 | P104: 159.3
B105: Kevlar-lined police leather gloves | G105: ='Crowd Control Team Needs'!L72 -> 59 | H105: ='Crowd Control Team Needs'!M72 -> 25 | I105: 1475 | J105: 5 | K105: 295 | L105: 0 | M105: 0 | N105: 147.5 | O105: 0 | P105: 442.5
B106: Large rubber bands | G106: ='Crowd Control Team Needs'!L73 -> 59 | H106: ='Crowd Control Team Needs'!M73 -> 4 | I106: 236 | J106: 1 | K106: 236 | L106: 0 | M106: 0 | N106: 23.6 | O106: 0 | P106: 259.6
B107: Handguns | G107: ='Crowd Control Team Needs'!L74 -> 59 | H107: ='Crowd Control Team Needs'!M74 -> 1144 | I107: 67496 | J107: 10 | K107: 6749.6 | L107: 0 | M107: =0.05*I107 -> 3374.8 | N107: 6749.6 | O107: 0 | P107: 16874 | Q107: =SUM(P79:P107) -> 74734.8
B108: 75’ Portable Communications Towers | G108: ='Crowd Control Team Needs'!L82 -> 4 | H108: ='Crowd Control Team Needs'!M82 -> 90000 | I108: =G108*H108 -> 360000 | J108: 10 | K108: 36000 | L108: =0.1*I108 -> 36000 | M108: =0.05*I108 -> 18000 | N108: =0.1*I108 -> 36000 | O108: 0 | P108: =SUM(K108:O108) -> 126000
B109: Satellite Communications trailer with data, VoIP & video capability | G109: ='Crowd Control Team Needs'!L83 -> 2 | H109: ='Crowd Control Team Needs'!M83 -> 199000 | I109: 398000 | J109: 10 | K109: 39800 | L109: =0.1*I109 -> 39800 | M109: =0.05*I109 -> 19900 | N109: =0.1*I109 -> 39800 | O109: =0.25*I109 -> 99500 | P109: 238800
B110: 800 MHz 10 Watt Portable Repeaters | G110: ='Crowd Control Team Needs'!L84 -> 1 | H110: ='Crowd Control Team Needs'!M84 -> 8500 | I110: 8500 | J110: 5 | K110: 1700 | L110: 850 | M110: 425 | N110: 850 | O110: 0 | P110: 3825
B111: 800 MHz 25 Watt Portable Repeaters | G111: ='Crowd Control Team Needs'!L85 -> 1 | H111: ='Crowd Control Team Needs'!M85 -> 8500 | I111: 8500 | J111: 5 | K111: 1700 | L111: 850 | M111: 425 | N111: 850 | O111: 0 | P111: 3825
B112: 800 MHz Conventional Repeaters | G112: ='Crowd Control Team Needs'!L86 -> 1 | H112: ='Crowd Control Team Needs'!M86 -> 3934 | I112: 3934 | J112: 5 | K112: 786.8 | L112: 393.4 | M112: 196.7 | N112: 393.4 | O112: 0 | P112: 1770.3
B113: UHF Conventional Repeater | G113: ='Crowd Control Team Needs'!L87 -> 1 | H113: ='Crowd Control Team Needs'!M87 -> 4833 | I113: 4833 | J113: 5 | K113: 966.6 | L113: 483.3 | M113: 241.65 | N113: 483.3 | O113: 0 | P113: 2174.85
B114: UHF 10 Watt Portable Repeater | G114: ='Crowd Control Team Needs'!L88 -> 1 | H114: ='Crowd Control Team Needs'!M88 -> 1063 | I114: 1063 | J114: 5 | K114: 212.6 | L114: 106.3 | M114: 53.15 | N114: 106.3 | O114: 0 | P114: 478.35
B115: VHF Conventional Repeater | G115: ='Crowd Control Team Needs'!L89 -> 1 | H115: ='Crowd Control Team Needs'!M89 -> 2500 | I115: 2500 | J115: 5 | K115: 500 | L115: 250 | M115: 125 | N115: 250 | O115: 0 | P115: 1125
B116: VHF 10 Watt Portable Repeater | G116: ='Crowd Control Team Needs'!L90 -> 1 | H116: ='Crowd Control Team Needs'!M90 -> 1063 | I116: 1063 | J116: 5 | K116: 212.6 | L116: 106.3 | M116: 53.15 | N116: 106.3 | O116: 0 | P116: 478.35
B117: VHF, UHF & 800 MHz Desk Top Control Station | G117: ='Crowd Control Team Needs'!L91 -> 1 | H117: ='Crowd Control Team Needs'!M91 -> 10156 | I117: 10156 | J117: 5 | K117: 2031.2 | L117: 1015.6 | M117: 507.8 | N117: 1015.6 | O117: =0.25*I117 -> 2539 | P117: 7109.2
B118: 800 MHz Handheld Radios (Motorola XTS 2500) | G118: ='Crowd Control Team Needs'!L92 -> 1 | H118: ='Crowd Control Team Needs'!M92 -> 2500 | I118: 2500 | J118: 5 | K118: 500 | L118: 250 | M118: 125 | N118: 250 | O118: 0 | P118: 1125
B119: VHF Handheld Radios | G119: ='Crowd Control Team Needs'!L93 -> 1 | H119: ='Crowd Control Team Needs'!M93 -> 800 | I119: 800 | J119: 5 | K119: 160 | L119: 80 | M119: 40 | N119: 80 | O119: 0 | P119: 360
B120: UHF Handheld Radios | G120: ='Crowd Control Team Needs'!L94 -> 1 | H120: ='Crowd Control Team Needs'!M94 -> 806 | I120: 806 | J120: 5 | K120: 161.2 | L120: 80.6 | M120: 40.3 | N120: 80.6 | O120: 0 | P120: 362.7
B121: 6 bay rack chargers | G121: ='Crowd Control Team Needs'!L95 -> 1 | H121: ='Crowd Control Team Needs'!M95 -> 639 | I121: 639 | J121: 5 | K121: 127.8 | L121: 63.9 | M121: 31.95 | N121: 63.9 | O121: 0 | P121: 287.55
B122: Law enforcement surveillance equipment | G122: ='Crowd Control Team Needs'!L96 -> 1 | H122: ='Crowd Control Team Needs'!M96 -> 5432 | I122: 5432 | J122: 10 | K122: 543.2 | L122: 543.2 | M122: 271.6 | N122: 543.2 | O122: =0.25*I122 -> 1358 | P122: 3259.2
B123: Mapping/GIS Software | G123: ='Crowd Control Team Needs'!L97 -> 1 | H123: ='Crowd Control Team Needs'!M97 -> 40000 | I123: 40000 | J123: 10 | K123: 4000 | L123: 0 | M123: 0 | N123: 4000 | O123: =0.25*I123 -> 10000 | P123: 18000
B124: Data Acquisition Software | G124: ='Crowd Control Team Needs'!L98 -> 1 | H124: ='Crowd Control Team Needs'!M98 -> 7040 | I124: 7040 | J124: 10 | K124: 704 | L124: 0 | M124: 0 | N124: 704 | O124: =0.25*I124 -> 1760 | P124: 3168
B125: Data Exchange and Interoperability Software of System(s) | G125: ='Crowd Control Team Needs'!L99 -> 1 | H125: ='Crowd Control Team Needs'!M99 -> 40000 | I125: 40000 | J125: 10 | K125: 4000 | L125: 0 | M125: 0 | N125: 4000 | O125: =0.25*I125 -> 10000 | P125: 18000
B126: Intelligence Sharing System | G126: ='Crowd Control Team Needs'!L100 -> 1 | H126: ='Crowd Control Team Needs'!M100 -> 60000 | I126: 60000 | J126: 10 | K126: 6000 | L126: =0.1*I126 -> 6000 | M126: 0 | N126: 6000 | O126: =15000*G126 -> 15000 | P126: 33000
B127: Generator (14,000 Watts) | G127: ='Crowd Control Team Needs'!L101 -> 2 | H127: ='Crowd Control Team Needs'!M101 -> 3689 | I127: 7378 | J127: 10 | K127: 737.8 | L127: =0.1*I127 -> 737.8 | M127: =0.05*I127 -> 368.9 | N127: 737.8 | O127: 0 | P127: 2582.3
B128: Generator (7,000 Watts) | G128: ='Crowd Control Team Needs'!L102 -> 0 | H128: ='Crowd Control Team Needs'!M102 -> 2300 | I128: 0 | J128: 10 | K128: 0 | L128: =0.1*I128 -> 0 | M128: =0.05*I128 -> 0 | N128: =0.1*I128 -> 0 | O128: 0 | P128: 0
B129: Video capture software | G129: ='Crowd Control Team Needs'!L103 -> 1 | H129: ='Crowd Control Team Needs'!M103 -> 50 | I129: 50 | J129: 10 | K129: 5 | L129: 0 | M129: 0 | N129: =0.1*I129 -> 5 | O129: =0.25*I129 -> 12.5 | P129: 22.5
B130: Document Scanner | G130: ='Crowd Control Team Needs'!L104 -> 2 | H130: ='Crowd Control Team Needs'!M104 -> 450 | I130: 900 | J130: 5 | K130: 180 | L130: =0.1*I130 -> 90 | M130: =0.05*I130 -> 45 | N130: =0.1*I130 -> 90 | O130: =0.25*I130 -> 225 | P130: 630
B131: Fax Machine: Canon L90 Laser | G131: ='Crowd Control Team Needs'!L105 -> 2 | H131: ='Crowd Control Team Needs'!M105 -> 100 | I131: 200 | J131: 5 | K131: 40 | L131: =0.1*I131 -> 20 | M131: =0.05*I131 -> 10 | N131: 20 | O131: =0.25*I131 -> 50 | P131: 140
B132: Printer: HP LaserJet P4014N | G132: ='Crowd Control Team Needs'!L106 -> 2 | H132: ='Crowd Control Team Needs'!M106 -> 900 | I132: 1800 | J132: 5 | K132: 360 | L132: =0.1*I132 -> 180 | M132: =0.05*I132 -> 90 | N132: 180 | O132: =0.25*I132 -> 450 | P132: 1260
B133: Copy Machine: Canon MF6540 | G133: ='Crowd Control Team Needs'!L107 -> 2 | H133: ='Crowd Control Team Needs'!M107 -> 500 | I133: 1000 | J133: 5 | K133: 200 | L133: =0.1*I133 -> 100 | M133: =0.05*I133 -> 50 | N133: 100 | O133: =0.25*I133 -> 250 | P133: 700
B134: Power strip (six outlet, surge protection) | G134: ='Crowd Control Team Needs'!L108 -> 10 | H134: ='Crowd Control Team Needs'!M108 -> 12 | I134: 120 | J134: 5 | K134: 24 | L134: 0 | M134: 0 | N134: 12 | O134: 0 | P134: 36
B135: 40' Extension Cord | G135: ='Crowd Control Team Needs'!L109 -> 10 | H135: ='Crowd Control Team Needs'!M109 -> 32 | I135: 320 | J135: 5 | K135: 64 | L135: 0 | M135: 0 | N135: 32 | O135: 0 | P135: 96
B136: Single-unit Rapid Charger | G136: ='Crowd Control Team Needs'!L110 -> 1 | H136: ='Crowd Control Team Needs'!M110 -> 60 | I136: 60 | J136: 5 | K136: 12 | L136: =0.1*I136 -> 6 | M136: =0.05*I136 -> 3 | N136: 6 | O136: 0 | P136: 27
B137: 6 Unit Multi-Charger | G137: ='Crowd Control Team Needs'!L111 -> 1 | H137: ='Crowd Control Team Needs'!M111 -> 190 | I137: 190 | J137: 5 | K137: 38 | L137: =0.1*I137 -> 19 | M137: =0.05*I137 -> 9.5 | N137: 19 | O137: 0 | P137: 85.5
B138: Microsoft Office/Adobe Acrobat | G138: ='Crowd Control Team Needs'!L112 -> 1 | H138: ='Crowd Control Team Needs'!M112 -> 200 | I138: 200 | J138: 10 | K138: 20 | L138: 0 | M138: 0 | N138: 20 | O138: =0.25*I138 -> 50 | P138: 90
B139: ACU-1000 | G139: ='Crowd Control Team Needs'!L113 -> 1 | H139: ='Crowd Control Team Needs'!M113 -> 100000 | I139: 100000 | J139: 5 | K139: 20000 | L139: =0.1*I139 -> 10000 | M139: =0.05*I139 -> 5000 | N139: 10000 | O139: 0 | P139: 45000
B140: DC Power Electrical Rectifier system | G140: ='Crowd Control Team Needs'!L114 -> 1 | H140: ='Crowd Control Team Needs'!M114 -> 350 | I140: 350 | J140: 5 | K140: 70 | L140: =0.1*I140 -> 35 | M140: =0.05*I140 -> 17.5 | N140: 35 | O140: 0 | P140: 157.5 | Q140: =SUM(P108:P140) -> 513975.3
L141: Total Equipment Annual Cost: | P141: =SUM(P66:P140) -> 751947.35
B144: Personnel Costs | N144: =CCPersonnelAnnCost -> 12048
B147: Item Description | H147: Total Personnel | I147: Hours Deployed | J147: Hourly Wage/ Backfill | K147: Initial Cost | L147: Deployment Frequency | M147: Annual Cost
B148: Officer in Charge | H148: ='Crowd Control Team Needs'!K122 -> 1 | I148: ='Crowd Control Team Needs'!L122 -> 6 | J148: ='Crowd Control Team Needs'!M122 -> 52 | K148: =H148*I148*J148 -> 312 | L148: =EventFrequency -> 1 | M148: =L148*K148 -> 312
B149: Deputy OIC | H149: ='Crowd Control Team Needs'!K123 -> 1 | I149: ='Crowd Control Team Needs'!L123 -> 6 | J149: ='Crowd Control Team Needs'!M123 -> 52 | K149: =H149*I149*J149 -> 312 | L149: 1 | M149: =L149*K149 -> 312
B150: Supervisors | H150: ='Crowd Control Team Needs'!K124 -> 4 | I150: ='Crowd Control Team Needs'!L124 -> 6 | J150: ='Crowd Control Team Needs'!M124 -> 52 | K150: 1248 | L150: 1 | M150: 1248
B151: Counter Sniper | H151: ='Crowd Control Team Needs'!K125 -> 2 | I151: ='Crowd Control Team Needs'!L125 -> 6 | J151: ='Crowd Control Team Needs'!M125 -> 32 | K151: 384 | L151: 1 | M151: 384
B152: Grenadiers | H152: ='Crowd Control Team Needs'!K126 -> 8 | I152: ='Crowd Control Team Needs'!L126 -> 6 | J152: ='Crowd Control Team Needs'!M126 -> 32 | K152: 1536 | L152: 1 | M152: 1536
B153: Officers | H153: ='Crowd Control Team Needs'!K127 -> 38 | I153: ='Crowd Control Team Needs'!L127 -> 6 | J153: ='Crowd Control Team Needs'!M127 -> 32 | K153: 7296 | L153: 1 | M153: 7296
B154: Prison Transport Officers | H154: ='Crowd Control Team Needs'!K128 -> 4 | I154: ='Crowd Control Team Needs'!L128 -> 6 | J154: ='Crowd Control Team Needs'!M128 -> 32 | K154: 768 | L154: 1 | M154: 768
B155: Booking Personnel | H155: ='Crowd Control Team Needs'!K129 -> 1 | I155: ='Crowd Control Team Needs'!L129 -> 6 | J155: ='Crowd Control Team Needs'!M129 -> 32 | K155: 192 | L155: 1 | M155: 192
J156: Total Personnel Annual Cost: | M156: =SUM(M148:N155) -> 12048
B159: Training Costs | M159: =SUM(O173,O183) -> 74336
B162: Item Description | I162: Quantity | J162: Cost of Course + Backfill | K162: Initial Costs | L162: Retraining Frequency (years) | M162: Average Career (years) | N162: Annual Costs
B163: Supervisors
B164: IS-100 | I164: ='Crowd Control Team Needs'!J138 -> 12 | J164: ='Crowd Control Team Needs'!K138*'Crowd Control Team Needs'!M138+'Crowd Control Team Needs'!L138 -> 156 | K164: =I164*J164 -> 1872 | L164: 3 | M164: 9 | N164: =K164/(IF(L164<M164,L164,M164)) -> 624
B165: IS-700 | I165: ='Crowd Control Team Needs'!J139 -> 12 | J165: ='Crowd Control Team Needs'!K139*'Crowd Control Team Needs'!M139+'Crowd Control Team Needs'!L139 -> 156 | K165: 1872 | L165: 3 | M165: 9 | N165: =K165/(IF(L165<M165,L165,M165)) -> 624
B166: IS-800 | I166: ='Crowd Control Team Needs'!J140 -> 12 | J166: ='Crowd Control Team Needs'!K140*'Crowd Control Team Needs'!M140+'Crowd Control Team Needs'!L140 -> 156 | K166: 1872 | L166: 3 | M166: 9 | N166: 624
B167: IS-15.a Special Events Contingency Planning for Public Safety Agencies | I167: ='Crowd Control Team Needs'!J141 -> 12 | J167: ='Crowd Control Team Needs'!K141*'Crowd Control Team Needs'!M141+'Crowd Control Team Needs'!L141 -> 260 | K167: 3120 | L167: 3 | M167: 9 | N167: 1040
B168: ICS-300 (G-300) | I168: ='Crowd Control Team Needs'!J142 -> 12 | J168: ='Crowd Control Team Needs'!K142*'Crowd Control Team Needs'!M142+'Crowd Control Team Needs'!L142 -> 936 | K168: 11232 | L168: 3 | M168: 9 | N168: 3744
B169: Crowd Control Training | I169: ='Crowd Control Team Needs'!J143 -> 12 | J169: ='Crowd Control Team Needs'!K143*'Crowd Control Team Needs'!M143+'Crowd Control Team Needs'!L143 -> 2080 | K169: 24960 | L169: 3 | M169: 9 | N169: 8320
B170: ='Crowd Control Team Needs'!B144:H144 -> Additional training | I170: ='Crowd Control Team Needs'!J144 -> 12 | J170: ='Crowd Control Team Needs'!K144*'Crowd Control Team Needs'!M144+'Crowd Control Team Needs'!L144 -> 0 | K170: 0 | L170: 3 | M170: 9 | N170: 0
B171: ='Crowd Control Team Needs'!B145:H145 -> Additional training | I171: ='Crowd Control Team Needs'!J145 -> 12 | J171: ='Crowd Control Team Needs'!K145*'Crowd Control Team Needs'!M145+'Crowd Control Team Needs'!L145 -> 0 | K171: =I171*J171 -> 0 | L171: 3 | M171: 9 | N171: =K171/(IF(L171<M171,L171,M171)) -> 0
B172: ='Crowd Control Team Needs'!B146:H146 -> Additional training | I172: ='Crowd Control Team Needs'!J146 -> 12 | J172: ='Crowd Control Team Needs'!K146*'Crowd Control Team Needs'!M146+'Crowd Control Team Needs'!L146 -> 0 | K172: 0 | L172: 3 | M172: 9 | N172: 0
B173: ='Crowd Control Team Needs'!B147:H147 -> Additional training | I173: ='Crowd Control Team Needs'!J147 -> 12 | J173: ='Crowd Control Team Needs'!K147*'Crowd Control Team Needs'!M147+'Crowd Control Team Needs'!L147 -> 0 | K173: 0 | L173: 3 | M173: 9 | N173: 0 | O173: =SUM(N164:N173) -> 14976
B174: Line Officers
B175: IS-100 | I175: ='Crowd Control Team Needs'!I149 -> 53 | J175: ='Crowd Control Team Needs'!K149*'Crowd Control Team Needs'!M149+'Crowd Control Team Needs'!L149 -> 96 | K175: =I175*J175 -> 5088 | L175: 3 | M175: 9 | N175: =K175/(IF(L175<M175,L175,M175)) -> 1696
B176: IS-700 | I176: ='Crowd Control Team Needs'!J150 -> 106 | J176: ='Crowd Control Team Needs'!K150*'Crowd Control Team Needs'!M150+'Crowd Control Team Needs'!L150 -> 96 | K176: =I176*J176 -> 10176 | L176: 3 | M176: 9 | N176: =K176/(IF(L176<M176,L176,M176)) -> 3392
B177: IS-800 | I177: ='Crowd Control Team Needs'!J151 -> 106 | J177: ='Crowd Control Team Needs'!K151*'Crowd Control Team Needs'!M151+'Crowd Control Team Needs'!L151 -> 96 | K177: 10176 | L177: 3 | M177: 9 | N177: 3392
B178: IS-15.a Special Events Contingency Planning for Public Safety Agencies | I178: ='Crowd Control Team Needs'!J152 -> 106 | J178: ='Crowd Control Team Needs'!K152*'Crowd Control Team Needs'!M152+'Crowd Control Team Needs'!L152 -> 160 | K178: 16960 | L178: 3 | M178: 9 | N178: 5653.333333
B179: Crowd Control Training | I179: ='Crowd Control Team Needs'!J153 -> 106 | J179: ='Crowd Control Team Needs'!K153*'Crowd Control Team Needs'!M153+'Crowd Control Team Needs'!L153 -> 1280 | K179: 135680 | L179: 3 | M179: 9 | N179: 45226.66667
B180: ='Crowd Control Team Needs'!B154:H154 -> Additional training | I180: ='Crowd Control Team Needs'!J154 -> 106 | J180: ='Crowd Control Team Needs'!K154*'Crowd Control Team Needs'!M154+'Crowd Control Team Needs'!L154 -> 0 | K180: 0 | L180: 3 | M180: 9 | N180: 0
B181: ='Crowd Control Team Needs'!B155:H155 -> Additional training | I181: ='Crowd Control Team Needs'!J155 -> 106 | J181: ='Crowd Control Team Needs'!K155*'Crowd Control Team Needs'!M155+'Crowd Control Team Needs'!L155 -> 0 | K181: 0 | L181: 3 | M181: 9 | N181: 0
B182: ='Crowd Control Team Needs'!B156:H156 -> Additional training | I182: ='Crowd Control Team Needs'!J156 -> 106 | J182: ='Crowd Control Team Needs'!K156*'Crowd Control Team Needs'!M156+'Crowd Control Team Needs'!L156 -> 0 | K182: 0 | L182: 3 | M182: 9 | N182: 0
B183: ='Crowd Control Team Needs'!B157:H157 -> Additional training | I183: ='Crowd Control Team Needs'!I157 -> 53 | J183: ='Crowd Control Team Needs'!K157*'Crowd Control Team Needs'!M157+'Crowd Control Team Needs'!L157 -> 0 | K183: 0 | L183: 3 | M183: 9 | N183: 0 | O183: =SUM(N175:N183) -> 59360
K184: Total Training Annual Cost: | N184: =SUM(N164:N173,N175:N183) -> 74336
B187: User Input Equipment | P187: =SUM(CCCustomEquipAnnCosts) -> 0
B191: Item Description | G191: Quantity | H191: Unit Cost | I191: (1) Initial | J191: Shelf Life | K191: R-Cost | L191: (2) Energy | M191: (3) Operating | N191: (4) Repair | O191: (5) Upgrade | P191: Annual Costs
B192: ='Crowd Control Team Needs'!B165:I165 -> Custom equipment item | G192: ='Crowd Control Team Needs'!L165 -> 0 | H192: ='Crowd Control Team Needs'!M165 -> 0 | I192: =H192*G192 -> 0 | J192: 5 | K192: =I192/J192 -> 0 | L192: 0 | M192: 0 | N192: 0 | O192: 0 | P192: =SUM(K192:O192) -> 0
B193: ='Crowd Control Team Needs'!B166:I166 -> Custom equipment item | G193: ='Crowd Control Team Needs'!L166 -> 0 | H193: ='Crowd Control Team Needs'!M166 -> 0 | I193: =H193*G193 -> 0 | J193: 5 | K193: =I193/J193 -> 0 | L193: 0 | M193: 0 | N193: 0 | O193: 0 | P193: =SUM(K193:O193) -> 0
B194: ='Crowd Control Team Needs'!B167:I167 -> Custom equipment item | G194: ='Crowd Control Team Needs'!L167 -> 0 | H194: ='Crowd Control Team Needs'!M167 -> 0 | I194: 0 | J194: 5 | K194: 0 | L194: 0 | M194: 0 | N194: 0 | O194: 0 | P194: 0
B195: ='Crowd Control Team Needs'!B168:I168 -> Custom equipment item | G195: ='Crowd Control Team Needs'!L168 -> 0 | H195: ='Crowd Control Team Needs'!M168 -> 0 | I195: 0 | J195: 5 | K195: 0 | L195: 0 | M195: 0 | N195: 0 | O195: 0 | P195: 0
B196: ='Crowd Control Team Needs'!B169:I169 -> Custom equipment item | G196: ='Crowd Control Team Needs'!L169 -> 0 | H196: ='Crowd Control Team Needs'!M169 -> 0 | I196: 0 | J196: 5 | K196: 0 | L196: 0 | M196: 0 | N196: 0 | O196: 0 | P196: 0
B197: ='Crowd Control Team Needs'!B170:I170 -> Custom equipment item | G197: ='Crowd Control Team Needs'!L170 -> 0 | H197: ='Crowd Control Team Needs'!M170 -> 0 | I197: 0 | J197: 5 | K197: 0 | L197: 0 | M197: 0 | N197: 0 | O197: 0 | P197: 0

Sheet Perimeter and Checkpoint Needs
B7: =CONCATENATE("You indicated the need for ",PCCheckpoints," Checkpoint Team(s) and ", PCPerimeterLength, " feet of perimeter coverage.") -> You indicated the need for 4 Checkpoint Team(s) and 500 feet of perimeter coverage.
B9: Perimeter & Checkpoint Equipment | N9: =SUM(M13:M17) -> 53007
B12: Item Description | J12: Default Quantity | K12: Quantity | L12: Unit Cost | M12: Total Initial Cost
B13: Mobile Checkpoint Guard Booth | J13: =PCCheckpoints -> 4 | K13: 1 | L13: 18000 | M13: =K13*L13 -> 18000
B14: Plastic Barriers | J14: =PCPerimeterLength/5 -> 100 | K14: 100 | L14: 350 | M14: =K14*L14 -> 35000
B15: Plastic Fold-up Barriers | J15: =VLOOKUP(B15,PerimeterEquipmentDefaults,2,FALSE) -> 0 | K15: 0 | L15: 300 | M15: =K15*L15 -> 0
B16: Steel Crowd Control Barriers | J16: =VLOOKUP(B16,PerimeterEquipmentDefaults,2,FALSE) -> 0 | K16: 0 | L16: 100 | M16: =K16*L16 -> 0
B17: Caution Tape | J17: =PCCheckpoints -> 4 | K17: 1 | L17: 7 | M17: =K17*L17 -> 7
K18: Total Initial Cost: | M18: =SUM(M13:M17) -> 53007
B22: Personnel | N22: =SUM(N26:N27) -> 10368
B25: Item Description | G25: Default Quantity per Checkpoint | H25: Quantity per Checkpoint | I25: Number of Checkpoints | J25: Number of Shifts | K25: Total Personnel | L25: Hours Deployed | M25: Hourly Wage/Backfill | N25: Operational Cost
B26: Supervisors | G26: 4 | H26: 4 | I26: =PCCheckpoints -> 4 | J26: =EventShifts -> 1 | K26: =H26*I26 -> 16 | L26: =EventLength -> 6 | M26: 52 | N26: =M26*L26*K26 -> 4992
B27: Patrol Officers | G27: 7 | H27: 7 | I27: =PCCheckpoints -> 4 | J27: =EventShifts -> 1 | K27: =H27*I27 -> 28 | L27: =EventLength -> 6 | M27: 32 | N27: =M27*L27*K27 -> 5376
L28: Total Initial Cost: | N28: =SUM(N26:N27) -> 10368
B32: Training | N32: =SUM(N37:N44)+SUM(N46:N53) -> 4455
B35: Item Description | I35: Default quantity (personnel to receive training) | J35: Quantity | K35: Course hours | L35: Course cost | M35: Hourly Wage/Backfill | N35: Total Cost
B36: Supervisors
B37: IS-100 | I37: =PCNumSupervisors -> 4 | J37: 4 | K37: 3 | L37: 0 | M37: 52 | N37: =J37*K37*M37+L37 -> 624
B38: IS-230 | I38: 4 | J38: 4 | K38: 1 | L38: 0 | M38: 52 | N38: =J38*K38*M38+L38 -> 208
B39: IS-700 | I39: 4 | J39: 4 | K39: 3 | L39: 0 | M39: 52 | N39: 624
B40: IS-701 | I40: 4 | J40: 4 | K40: 2 | L40: 0 | M40: 52 | N40: 416
B41: Additional training | I41: 4 | J41: 4 | K41: 0 | L41: 0 | M41: 52 | N41: 0
B42: Additional training | I42: 4 | J42: 4 | K42: 0 | L42: 0 | M42: 52 | N42: 0
B43: Additional training | I43: 4 | J43: 4 | K43: 0 | L43: 0 | M43: 52 | N43: 0
B44: Additional training | I44: 4 | J44: 4 | K44: 0 | L44: 0 | M44: 52 | N44: 0
B45: Line Officers
B46: IS-100 | I46: =PCNumOfficers -> 7 | J46: 7 | K46: 3 | L46: 0 | M46: 41 | N46: =J46*K46*M46+L46 -> 861
B47: IS-230 | I47: 7 | J47: 7 | K47: 1 | L47: 0 | M47: 41 | N47: =J47*K47*M47+L47 -> 287
B48: IS-700 | I48: 7 | J48: 7 | K48: 3 | L48: 0 | M48: 41 | N48: 861
B49: IS-701 | I49: 7 | J49: 7 | K49: 2 | L49: 0 | M49: 41 | N49: 574
B50: Additional training | I50: 7 | J50: 7 | K50: 0 | L50: 0 | M50: 41 | N50: 0
B51: Additional training | I51: 7 | J51: 7 | K51: 0 | L51: 0 | M51: 41 | N51: 0
B52: Additional training | I52: 7 | J52: 7 | K52: 0 | L52: 0 | M52: 41 | N52: 0
B53: Additional training | I53: 7 | J53: 7 | K53: 0 | L53: 0 | M53: 41 | N53: 0
L54: Total Initial Cost: | N54: =SUM(N37:N44)+SUM(N46:N53) -> 4455
B58: Custom Equipment | N58: =SUM(PCCustomEquipInitCosts) -> 0
B61: Item Description | I61: Quantity per Checkpoint | J61: Number of Checkpoints | K61: Total Quantity | L61: Unit Cost | M61: Total Cost
B62: Custom equipment item | I62: 0 | J62: =PCCheckpoints -> 4 | K62: =I62*J62 -> 0 | L62: 0 | M62: =K62*L62 -> 0
B63: Custom equipment item | I63: 0 | J63: 4 | K63: 0 | L63: 0 | M63: 0
B64: Custom equipment item | I64: 0 | J64: 4 | K64: 0 | L64: 0 | M64: 0
B65: Custom equipment item | I65: 0 | J65: 4 | K65: 0 | L65: 0 | M65: 0
B66: Custom equipment item | I66: 0 | J66: 4 | K66: 0 | L66: 0 | M66: 0
B67: Custom equipment item | I67: 0 | J67: 4 | K67: 0 | L67: 0 | M67: 0

Sheet Perimeter and Checkpoint Costs
J4: total
B7: Total Initial Costs for Perimeter and Checkpoint Team | M7: =M16 -> 57462
J12: Equipment Initial Costs: | M12: =PCEquipmentInitCost -> 53007
J13: Personnel Initial Costs: | M13: 0 | S13: Equipment Initial Costs: | T13: Training Initial Costs: | U13: User Input Equipment Initial Costs:
J14: Training Initial Costs: | M14: =PCTrainingInitCost -> 4455 | S14: =PCEquipmentInitCost -> 53007 | T14: =PCTrainingInitCost -> 4455 | U14: =PCCustomEquipInitCost -> 0
I15: User Input Equipment Initial Costs: | M15: =PCCustomEquipInitCost -> 0
M16: =SUM(M12:N15) -> 57462
B26: Total Annual Costs for Perimeter and Checkpoint Team | M26: =M36 -> 28664.5
J28: total
J32: Equipment Annual Costs: | M32: =PCEquipAllAnnCost -> 16811.5
J33: Personnel Annual Costs: | M33: =PCPersonnelAnnCost -> 10368 | S33: Equipment Annual Costs: | T33: Personnel Annual Costs: | U33: Training Annual Costs: | V33: User Input Equipment Annual Costs:
J34: Training Annual Costs: | M34: =PCTrainingAnnCost -> 1485 | S34: =PCEquipAllAnnCost -> 16811.5 | T34: =PCPersonnelAnnCost -> 10368 | U34: =PCTrainingAnnCost -> 1485 | V34: =PCCustomEquipAnnCost -> 0
I35: User Input Equipment Annual Costs: | M35: =PCCustomEquipAnnCost -> 0
M36: =SUM(M32:N35) -> 28664.5
J39: Number of expected deployments annually: | M39: =EventFrequency -> 1
K41: This can be changed on the User Input page.
B45: Annual Cost Breakdown
B48: Cost Factors | F48: (2) Energy | G48: (3) Operating | H48: (4) Repair | I48: (5) Upgrade
B49: Large Vehicle | F49: 0.36 | G49: 1200 | H49: 0.15 | I49: 0
B50: Small Vehicle | F50: 0.2 | G50: 1200 | H50: 0.15 | I50: 0
B51: Equipment (as a percentage of the initial cost) | F51: 0.1 | G51: 0.05 | H51: 0.1 | I51: 0.25
B55: Equipment Costs | O55: =PCEquipAllAnnCost -> 16811.5
B58: Item Description | E58: Quantity | F58: Comp Costs | G58: (1) Initial | H58: Shelf Life | I58: R-Cost | J58: (2) Energy | K58: (3) Operating | L58: (4) Repair | M58: (5) Upgrade | N58: Annual Costs
B59: Mobile Checkpoint Guard Booth | E59: ='Perimeter and Checkpoint Needs'!K13 -> 1 | F59: ='Perimeter and Checkpoint Needs'!L13 -> 18000 | G59: =E59*F59 -> 18000 | H59: 10 | I59: =G59/H59 -> 1800 | J59: =0.1*G59 -> 1800 | K59: =0.05*G59 -> 900 | L59: =0.1*G59 -> 1800 | M59: 0 | N59: =SUM(I59:M59) -> 6300
B60: Plastic Barriers | E60: ='Perimeter and Checkpoint Needs'!K14 -> 100 | F60: ='Perimeter and Checkpoint Needs'!L14 -> 350 | G60: =E60*F60 -> 35000 | H60: 5 | I60: =G60/H60 -> 7000 | J60: 0 | K60: 0 | L60: =0.1*G60 -> 3500 | M60: 0 | N60: =SUM(I60:M60) -> 10500
B61: Plastic Fold-up Barriers | E61: ='Perimeter and Checkpoint Needs'!K15 -> 0 | F61: ='Perimeter and Checkpoint Needs'!L15 -> 300 | G61: =E61*F61 -> 0 | H61: 5 | I61: =G61/H61 -> 0 | J61: 0 | K61: 0 | L61: =0.1*G61 -> 0 | M61: 0 | N61: =SUM(I61:M61) -> 0
B62: Steel Crowd Control Barriers | E62: ='Perimeter and Checkpoint Needs'!K16 -> 0 | F62: ='Perimeter and Checkpoint Needs'!L16 -> 100 | G62: =E62*F62 -> 0 | H62: 5 | I62: =G62/H62 -> 0 | J62: 0 | K62: 0 | L62: =0.1*G62 -> 0 | M62: 0 | N62: =SUM(I62:M62) -> 0
B63: Caution Tape | E63: ='Perimeter and Checkpoint Needs'!K17 -> 1 | F63: ='Perimeter and Checkpoint Needs'!L17 -> 7 | G63: =E63*F63 -> 7 | H63: 1 | I63: =G63/H63 -> 7 | J63: 0 | K63: 0 | L63: =4.5*E63 -> 4.5 | M63: 0 | N63: =SUM(I63:M63) -> 11.5
J64: Total Equipment Annual Cost: | N64: =SUM(N59:N63) -> 16811.5
B67: Personnel Costs | O67: =PCPersonnelAnnCost -> 10368
B70: Item Description | H70: Total Personnel | I70: Hours Deployed | J70: Hourly Wage/ Backfill | K70: Initial Cost | L70: Deployment Frequency | M70: Annual Costs
B71: ='Perimeter and Checkpoint Needs'!B26:F26 -> Supervisors | H71: ='Perimeter and Checkpoint Needs'!K26 -> 16 | I71: ='Perimeter and Checkpoint Needs'!L26 -> 6 | J71: ='Perimeter and Checkpoint Needs'!M26 -> 52 | K71: =H71*I71*J71 -> 4992 | L71: =EventFrequency -> 1 | M71: =L71*K71 -> 4992
B72: ='Perimeter and Checkpoint Needs'!B27:F27 -> Patrol Officers | H72: ='Perimeter and Checkpoint Needs'!K27 -> 28 | I72: ='Perimeter and Checkpoint Needs'!L27 -> 6 | J72: ='Perimeter and Checkpoint Needs'!M27 -> 32 | K72: =H72*I72*J72 -> 5376 | L72: 1 | M72: =L72*K72 -> 5376
J73: Total Personnel Annual Cost: | M73: =SUM(M71:N72) -> 10368
B76: Training Costs | O76: =SUM(M81:M88)+SUM(M90:M97) -> 1485
B79: Item Description | H79: Quantity | I79: Cost of Course + Backfill | J79: Initial Costs | K79: Retraining Frequency (years) | L79: Average Career (years) | M79: Annual Costs
B80: Supervisors
B81: IS-100 | H81: ='Perimeter and Checkpoint Needs'!J37 -> 4 | I81: ='Perimeter and Checkpoint Needs'!K37*'Perimeter and Checkpoint Needs'!M37+'Perimeter and Checkpoint Needs'!L37 -> 156 | J81: =H81*I81 -> 624 | K81: 3 | L81: 9 | M81: =J81/(IF(K81<L81,K81,L81)) -> 208
B82: IS-230 | H82: ='Perimeter and Checkpoint Needs'!J38 -> 4 | I82: ='Perimeter and Checkpoint Needs'!K38*'Perimeter and Checkpoint Needs'!M38+'Perimeter and Checkpoint Needs'!L38 -> 52 | J82: =H82*I82 -> 208 | K82: 3 | L82: 9 | M82: =J82/(IF(K82<L82,K82,L82)) -> 69.33333333
B83: IS-700 | H83: ='Perimeter and Checkpoint Needs'!J39 -> 4 | I83: ='Perimeter and Checkpoint Needs'!K39*'Perimeter and Checkpoint Needs'!M39+'Perimeter and Checkpoint Needs'!L39 -> 156 | J83: 624 | K83: 3 | L83: 9 | M83: 208
B84: IS-701 | H84: ='Perimeter and Checkpoint Needs'!J40 -> 4 | I84: ='Perimeter and Checkpoint Needs'!K40*'Perimeter and Checkpoint Needs'!M40+'Perimeter and Checkpoint Needs'!L40 -> 104 | J84: 416 | K84: 3 | L84: 9 | M84: 138.6666667
B85: ='Perimeter and Checkpoint Needs'!B41:H41 -> Additional training | H85: ='Perimeter and Checkpoint Needs'!J41 -> 4 | I85: ='Perimeter and Checkpoint Needs'!K41*'Perimeter and Checkpoint Needs'!M41+'Perimeter and Checkpoint Needs'!L41 -> 0 | J85: 0 | K85: 3 | L85: 9 | M85: 0
B86: ='Perimeter and Checkpoint Needs'!B42:H42 -> Additional training | H86: ='Perimeter and Checkpoint Needs'!J42 -> 4 | I86: ='Perimeter and Checkpoint Needs'!K42*'Perimeter and Checkpoint Needs'!M42+'Perimeter and Checkpoint Needs'!L42 -> 0 | J86: 0 | K86: 3 | L86: 9 | M86: 0
B87: ='Perimeter and Checkpoint Needs'!B43:H43 -> Additional training | H87: ='Perimeter and Checkpoint Needs'!J43 -> 4 | I87: ='Perimeter and Checkpoint Needs'!K43*'Perimeter and Checkpoint Needs'!M43+'Perimeter and Checkpoint Needs'!L43 -> 0 | J87: 0 | K87: 3 | L87: 9 | M87: 0
B88: ='Perimeter and Checkpoint Needs'!B44:H44 -> Additional training | H88: ='Perimeter and Checkpoint Needs'!J44 -> 4 | I88: ='Perimeter and Checkpoint Needs'!K44*'Perimeter and Checkpoint Needs'!M44+'Perimeter and Checkpoint Needs'!L44 -> 0 | J88: 0 | K88: 3 | L88: 9 | M88: =J88/(IF(K88<L88,K88,L88)) -> 0 | N88: =SUM(M81:M88) -> 624
B89: Line Officers
B90: IS-100 | H90: ='Perimeter and Checkpoint Needs'!J46 -> 7 | I90: ='Perimeter and Checkpoint Needs'!K46*'Perimeter and Checkpoint Needs'!M46+'Perimeter and Checkpoint Needs'!L46 -> 123 | J90: =H90*I90 -> 861 | K90: 3 | L90: 9 | M90: =J90/(IF(K90<L90,K90,L90)) -> 287
B91: IS-230 | H91: ='Perimeter and Checkpoint Needs'!J47 -> 7 | I91: ='Perimeter and Checkpoint Needs'!K47*'Perimeter and Checkpoint Needs'!M47+'Perimeter and Checkpoint Needs'!L47 -> 41 | J91: =H91*I91 -> 287 | K91: 3 | L91: 9 | M91: =J91/(IF(K91<L91,K91,L91)) -> 95.66666667
B92: IS-700 | H92: ='Perimeter and Checkpoint Needs'!J48 -> 7 | I92: ='Perimeter and Checkpoint Needs'!K48*'Perimeter and Checkpoint Needs'!M48+'Perimeter and Checkpoint Needs'!L48 -> 123 | J92: 861 | K92: 3 | L92: 9 | M92: 287
B93: IS-701 | H93: ='Perimeter and Checkpoint Needs'!J49 -> 7 | I93: ='Perimeter and Checkpoint Needs'!K49*'Perimeter and Checkpoint Needs'!M49+'Perimeter and Checkpoint Needs'!L49 -> 82 | J93: 574 | K93: 3 | L93: 9 | M93: 191.3333333
B94: ='Perimeter and Checkpoint Needs'!B50:H50 -> Additional training | H94: ='Perimeter and Checkpoint Needs'!J50 -> 7 | I94: ='Perimeter and Checkpoint Needs'!K50*'Perimeter and Checkpoint Needs'!M50+'Perimeter and Checkpoint Needs'!L50 -> 0 | J94: 0 | K94: 3 | L94: 9 | M94: 0
B95: ='Perimeter and Checkpoint Needs'!B51:H51 -> Additional training | H95: ='Perimeter and Checkpoint Needs'!J51 -> 7 | I95: ='Perimeter and Checkpoint Needs'!K51*'Perimeter and Checkpoint Needs'!M51+'Perimeter and Checkpoint Needs'!L51 -> 0 | J95: 0 | K95: 3 | L95: 9 | M95: 0
B96: ='Perimeter and Checkpoint Needs'!B52:H52 -> Additional training | H96: ='Perimeter and Checkpoint Needs'!J52 -> 7 | I96: ='Perimeter and Checkpoint Needs'!K52*'Perimeter and Checkpoint Needs'!M52+'Perimeter and Checkpoint Needs'!L52 -> 0 | J96: 0 | K96: 3 | L96: 9 | M96: 0
B97: ='Perimeter and Checkpoint Needs'!B53:H53 -> Additional training | H97: ='Perimeter and Checkpoint Needs'!J53 -> 7 | I97: ='Perimeter and Checkpoint Needs'!K53*'Perimeter and Checkpoint Needs'!M53+'Perimeter and Checkpoint Needs'!L53 -> 0 | J97: 0 | K97: 3 | L97: 9 | M97: 0 | N97: =SUM(M90:M97) -> 861
J98: Total Training Annual Cost: | M98: =SUM(M90:M97,M81:M88) -> 1485
B101: User Input Equipment | O101: =SUM(PCCustomEquipAnnCosts) -> 0
B104: Item Description | G104: Quantity | H104: Unit Cost | I104: (1) Initial | J104: Shelf Life | K104: R-Cost | L104: (2) Energy | M104: (3) Operating | N104: (4) Repair | O104: (5) Upgrade | P104: Annual Costs
B105: ='Perimeter and Checkpoint Needs'!B62:H62 -> Custom equipment item | G105: ='Perimeter and Checkpoint Needs'!K62 -> 0 | H105: ='Perimeter and Checkpoint Needs'!L62 -> 0 | I105: =H105*G105 -> 0 | J105: 5 | K105: =I105/J105 -> 0 | L105: 0 | M105: 0 | N105: 0 | O105: 0 | P105: =SUM(K105:O105) -> 0
B106: ='Perimeter and Checkpoint Needs'!B63:H63 -> Custom equipment item | G106: ='Perimeter and Checkpoint Needs'!K63 -> 0 | H106: ='Perimeter and Checkpoint Needs'!L63 -> 0 | I106: =H106*G106 -> 0 | J106: 5 | K106: =I106/J106 -> 0 | L106: 0 | M106: 0 | N106: 0 | O106: 0 | P106: =SUM(K106:O106) -> 0
B107: ='Perimeter and Checkpoint Needs'!B64:H64 -> Custom equipment item | G107: ='Perimeter and Checkpoint Needs'!K64 -> 0 | H107: ='Perimeter and Checkpoint Needs'!L64 -> 0 | I107: 0 | J107: 5 | K107: 0 | L107: 0 | M107: 0 | N107: 0 | O107: 0 | P107: 0
B108: ='Perimeter and Checkpoint Needs'!B65:H65 -> Custom equipment item | G108: ='Perimeter and Checkpoint Needs'!K65 -> 0 | H108: ='Perimeter and Checkpoint Needs'!L65 -> 0 | I108: 0 | J108: 5 | K108: 0 | L108: 0 | M108: 0 | N108: 0 | O108: 0 | P108: 0
B109: ='Perimeter and Checkpoint Needs'!B66:H66 -> Custom equipment item | G109: ='Perimeter and Checkpoint Needs'!K66 -> 0 | H109: ='Perimeter and Checkpoint Needs'!L66 -> 0 | I109: 0 | J109: 5 | K109: 0 | L109: 0 | M109: 0 | N109: 0 | O109: 0 | P109: 0
B110: ='Perimeter and Checkpoint Needs'!B67:H67 -> Custom equipment item | G110: ='Perimeter and Checkpoint Needs'!K67 -> 0 | H110: ='Perimeter and Checkpoint Needs'!L67 -> 0 | I110: 0 | J110: 5 | K110: 0 | L110: 0 | M110: 0 | N110: 0 | O110: 0 | P110: 0

Sheet Initial Costs
B8: Input Summary
C11: =CONCATENATE("Crowd Control Teams ",IF(CCInput="Yes","are","are not")," included in calculations.") -> Crowd Control Teams are included in calculations.
D12: =CONCATENATE("The desired officer-to-attendee ratio is 1 officer for every ", EventOfficerAttendeeRatio, " attendees.") -> The desired officer-to-attendee ratio is 1 officer for every 500 attendees.
D13: Total suggested Crowd Control Teams: | H13: =CCNumTeams -> 1
C15: =CONCATENATE("Perimeter/Checkpoint Teams ",IF(PCInput="Yes","are","are not")," included in calculations.") -> Perimeter/Checkpoint Teams are included in calculations.
D16: =CONCATENATE("You indicated the need for ",PCCheckpoints," Checkpoint Team(s) and ", PCPerimeterLength, " feet of perimeter coverage.") -> You indicated the need for 4 Checkpoint Team(s) and 500 feet of perimeter coverage.
B20: Initial Cost Breakdown
U23: Total Equipment Initial Costs: | V23: Total Training Initial Costs: | W23: Total User Input Initial Costs:
U24: =SUM(CCArrestKitInitCost,CCCommsLogsInitCost,CCCrowdEquipmentInitCost,CCOfficerEquipInitCost,CCVehicleInitCost)+PCEquipmentInitCost -> 1643008 | V24: =CCTrainingInitCost+PCTrainingInitCost -> 232551 | W24: =SUM(CCCustomEquipInitCosts)+SUM(PCCustomEquipInitCost) -> 0
K26: Total Equipment Initial Costs: | O26: =SUM(CCArrestKitInitCost,CCCommsLogsInitCost,CCCrowdEquipmentInitCost,CCOfficerEquipInitCost,CCVehicleInitCost)+PCEquipmentInitCost -> 1643008
K27: Total Personnel Initial Costs: | O27: 0
K28: Total Training Initial Costs: | O28: =CCTrainingInitCost+PCTrainingInitCost -> 232551
K29: Total User Input Initial Costs: | O29: =SUM(CCCustomEquipInitCosts)+SUM(PCCustomEquipInitCost) -> 0
O30: =SUM(O26:P29) -> 1875559

Sheet Annual Costs
B8: Input Summary
C11: =CONCATENATE("Crowd Control Teams ",IF(CCInput="Yes","are","are not")," included in calculations.") -> Crowd Control Teams are included in calculations.
D12: =CONCATENATE("The desired officer-to-attendee ratio is 1 officer for every ", EventOfficerAttendeeRatio, " attendees.") -> The desired officer-to-attendee ratio is 1 officer for every 500 attendees.
D13: Total suggested Crowd Control Teams: | H13: =CCNumTeams -> 1
C15: =CONCATENATE("Perimeter/Checkpoint Teams ",IF(PCInput="Yes","are","are not")," included in calculations.") -> Perimeter/Checkpoint Teams are included in calculations.
D16: =CONCATENATE("You indicated the need for ",PCCheckpoints," Checkpoint Team(s) and ", PCPerimeterLength, " feet of perimeter coverage.") -> You indicated the need for 4 Checkpoint Team(s) and 500 feet of perimeter coverage.
B20: Annual Cost Breakdown
U23: Total Equipment Annual Costs: | V23: Total Personnel Annual Costs: | W23: Total Training Annual Costs: | X23: Total User Input Annual Costs:
U24: =CCEquipAllAnnCost+PCEquipAllAnnCost -> 768758.85 | V24: =CCPersonnelAnnCost+PCPersonnelAnnCost -> 22416 | W24: =CCTrainingAnnCost+PCTrainingAnnCost -> 75821 | X24: =SUM(CCCustomEquipAnnCosts)+SUM(PCCustomEquipAnnCost) -> 0
K26: Total Equipment Annual Costs: | O26: =CCEquipAllAnnCost+PCEquipAllAnnCost -> 768758.85
K27: Total Personnel Annual Costs: | O27: =CCPersonnelAnnCost+PCPersonnelAnnCost -> 22416
K28: Total Training Annual Costs: | O28: =CCTrainingAnnCost+PCTrainingAnnCost -> 75821
K29: Total User Input Annual Costs: | O29: =SUM(CCCustomEquipAnnCosts)+SUM(PCCustomEquipAnnCost) -> 0
O30: =SUM(O26:P29) -> 866995.85
L34: Number of expected deployments annually: | O34: =EventFrequency -> 1
M36: This can be changed on the User Input page.

Sheet Gap Costs
B9: Gap Calculation
C12: Suggested Capability Level | I12: Current Capability Level | M12: Gap | U12: Calculated Gaps
D13: Crowd Control Team(s) | G13: =CCNumTeams -> 1 | J13: 0 | M13: =IF(OR(J13>G13,J13=G13),"No gap", G13-J13) -> 1 | U13: Crowd Control Team Gap | V13: =IF(CCGap="No gap",0,CCGap) -> 1
D14: Checkpoint Team(s) | G14: =PCCheckpoints -> 4 | J14: 0 | M14: =IF(OR(J14>G14,J14=G14),"No gap", G14-J14) -> 4 | U14: Checkpoint Gap | V14: =IF(CheckpointGap="No gap",0,CheckpointGap) -> 4
D15: Perimeter Barriers | G15: =SUM('Perimeter and Checkpoint Needs'!K14:K16) -> 100 | J15: 0 | M15: 100 | U15: Perimeter Gap | V15: =IF(PerimeterGap="No gap",0,PerimeterGap) -> 100
B20: Gap Costs
U21: INITIAL
U22: CC - Training per Team | V22: =CCTrainingInitCost/CCNumTeams -> 228096
U23: PC Training per Checkpoint | V23: =PCTrainingInitCost/PCCheckpoints -> 1113.75
L25: Initial Equipment and Training Costs
L26: Equipment Gap Costs: | O26: =CCGapCalc*CCEquipPerTeam+CheckpointGapCalc*PCCheckpointPerTeam+PerimeterGapCalc*PCBarrierPerBarrier -> 1697001 | U26: Crowd Control Equipment per team | V26: =SUM(CCArrestKitInitCost,CCCommsLogsInitCost,CCCrowdEquipmentInitCost,CCOfficerEquipInitCost,CCVehicleInitCost)/CCNumTeams -> 1590001
L27: Training Gap Costs: | O27: =CCGapCalc*CCTrainingPerTeam+CheckpointGapCalc*PCTrainingPerCheckpoint -> 232551 | U27: Checkpoint Equipment per checkpoint | V27: =PCCheckpointBoothsCost+PCCustomEquipInitCost/PCCheckpoints -> 18000
O28: =SUM(O26:P27) -> 1929552 | U28: Perimeter Equipment per barrier | V28: =MAX(PCBarrierCostMatrix) -> 350
U31: Equipment Gap Costs: | V31: Training Gap Costs:
U32: =CCGapCalc*CCEquipPerTeam+CheckpointGapCalc*PCCheckpointPerTeam+PerimeterGapCalc*PCBarrierPerBarrier -> 1697001 | V32: =CCGapCalc*CCTrainingPerTeam+CheckpointGapCalc*PCTrainingPerCheckpoint -> 232551
U41: ANNUAL
L43: Annual Equipment and Training Costs | U43: CC - Training per Team | V43: =CCTrainingAnnCost/CCNumTeams -> 74336
L44: Equipment Gap Costs: | O44: =CCGapCalc*CCEquipmentPerTeamAnn+CheckpointGapCalc*PCEquipPerCheckpointAnn+PerimeterGapCalc*PCBarrierPerBarrierAnn -> 768747.35 | U44: PC Training per Checkpoint | V44: =PCTrainingAnnCost/PCCheckpoints -> 371.25
L45: Personnel Gap Costs: | O45: =CCGapCalc*CCPersonnelPerTeamAnn+CheckpointGapCalc*PCPersonnelPerCheckpointAnn -> 22416
L46: Training Gap Costs: | O46: =CCGapCalc*CCTrainingPerTeamAnn+CheckpointGapCalc*PCTrainingPerCheckpointAnn -> 75821
O47: =SUM(O44:P46) -> 866984.35 | U47: Crowd Control Equipment per team | V47: =CCEquipAllAnnCost/CCNumTeams -> 751947.35
U48: Checkpoint Equipment per checkpoint | V48: =PCMobileBoothAnnCost/PCCheckpoints+PCCustomEquipAnnCost/PCCheckpoints -> 1575
U49: Perimeter Equipment per barrier | V49: =MAX(IF('Perimeter and Checkpoint Costs'!E60=0,0,'Perimeter and Checkpoint Costs'!N60/'Perimeter and Checkpoint Costs'!E60),IF('Perimeter and Checkpoint Costs'!E61=0,0,'Perimeter and Checkpoint Costs'!N61/'Perimeter and Checkpoint Costs'!E61),IF('Perimeter and Checkpoint Costs'!E62=0,0,'Perimeter and Checkpoint Costs'!N62/'Perimeter and Checkpoint Costs'!E62)) -> 105
U51: CC Personnel Per team | V51: =CCPersonnelAnnCost/CCNumTeams -> 12048
L52: Number of expected deployments annually: | O52: =EventFrequency -> 1 | U52: PC Personnel Per team | V52: =PCPersonnelAnnCost/PCCheckpoints -> 2592
M54: This can be changed on the User Input page.
U55: Equipment Gap Costs: | V55: Personnel Gap Costs: | W55: Training Gap Costs:
U56: =CCGapCalc*CCEquipmentPerTeamAnn+CheckpointGapCalc*PCEquipPerCheckpointAnn+PerimeterGapCalc*PCBarrierPerBarrierAnn -> 768747.35 | V56: =CCGapCalc*CCPersonnelPerTeamAnn+CheckpointGapCalc*PCPersonnelPerCheckpointAnn -> 22416 | W56: =CCGapCalc*CCTrainingPerTeamAnn+CheckpointGapCalc*PCTrainingPerCheckpointAnn -> 75821

Sheet Lists
A1: YesNo | B1: SingleDouble
A2: Yes | B2: Single
A3: No | B3: Double

Sheet EquipmentCrowdControl
A1: Equipment | B1: Default Quantity | C1: Price | D1: Source
A2: Crowd Control Equipment
A3: "Grenade" Launcher | B3: 30 | C3: 2500 | D3: GSA
A4: Smoke grenades | B4: 150 | C4: 25 | D4: GSA
A5: "Grenades" | B5: 150 | C5: 35 | D5: GSA
A6: Fogger | B6: 30 | C6: 26 | D6: GSA
A7: Oleoresin Capsicum Fog Cartridge | B7: 90 | C7: 45 | D7: GSA
A8: Riot control batons | B8: 59 | C8: 35 | D8: Galls
A9: Bullhorns | B9: 59 | C9: 80 | D9: BizChair
A10: Pepper spray | B10: 59 | C10: 5 | D10: GSA
A11: Mass Arrest Kit
A12: Weather-resistant Field Booking forms | B12: 30 | C12: 40 | D12: rkb
A13: Digital camera | B13: 30 | C13: 400 | D13: SC Fusion
A14: Fingerprinting equipment | B14: 30 | C14: 30 | D14: Copquest
A15: Vehicles
A16: Patrol Vehicles | B16: 14 | C16: 10000 | D16: Estimate
A17: Prisoner Transport Vans | B17: 2 | C17: 20000 | D17: Estimate
A18: Officer Equipment
A19: Soft Body Armor | B19: 59 | C19: 1000 | D19: rkb
A20: Portable Radios | B20: 59 | C20: 570 | D20: rkb
A21: Battery charger | B21: 6 | C21: 325 | D21: rkb
A22: Respiratory mask (NIOSH-approved) | B22: 59 | C22: 300 | D22: rkb
A23: Safety glasses | B23: 59 | C23: 3 | D23: rkb
A24: Ear protection | B24: 59 | C24: 1 | D24: rkb
A25: Fire extinguisher | B25: 30 | C25: 40 | D25: rkb
A26: Foul-weather gear | B26: 59 | C26: 15 | D26: rkb
A27: Handheld shields | B27: 59 | C27: 100 | D27: GSA pricing
A28: Personal hydration system | B28: 59 | C28: 50 | D28: GSA pricing
A29: Level C PPE suits | B29: 59 | C29: 200 | D29: GSA pricing
A30: Shoulder fired weapons | B30: 0 | C30: 0 | D30: 0
A31: Safety Helmet | B31: 59 | C31: 30 | D31: SC Cobra
A32: Vest or Outer Garment, High-visibility | B32: 59 | C32: 9 | D32: SC Cit Prep
A33: Handcuffs | B33: 59 | C33: 21 | D33: Copquest
A34: Handcuff case | B34: 59 | C34: 16.5 | D34: MS Police Dept Document s7
A35: Duty belt | B35: 59 | C35: 26 | D35: MS Police Dept Document s7
A36: Flashlight: MAG-LITE D-cell | B36: 59 | C36: 16 | D36: Home Depot
A37: D-Cell Batteries (8) | B37: 59 | C37: 8 | D37: Staples
A38: Flashlight holder (D-cell) | B38: 59 | C38: 5.75 | D38: MS Police Dept Document s7
A39: Flex cuffs (10) | B39: 59 | C39: 11 | D39: Copquest
A40: Cutting tool for flex cuffs | B40: 59 | C40: 12.75 | D40: Copquest
A41: Knife | B41: 59 | C41: 107 | D41: Spyderco
A42: Waterproof Duty Boots | B42: 59 | C42: 124 | D42: Galls
A43: Regular Duty Boots | B43: 59 | C43: 65 | D43: Galls
A44: Regular Duty Gloves | B44: 59 | C44: 9 | D44: SC Cit Prep
A45: Kevlar-lined police leather gloves | B45: 59 | C45: 25 | D45: Copquest
A46: Large rubber bands | B46: 59 | C46: 4 | D46: Staples
A47: Handguns | B47: 59 | C47: 1144 | D47: Impact Guns
A48: Communications and Logistics Equipment
A49: 75’ Portable Communications Towers | B49: 4 | C49: 90000 | D49: SC Int Comm
A50: Satellite Communications trailer with data, VoIP & video capability | B50: 2 | C50: 199000 | D50: SC Int Comm
A51: 800 MHz 10 Watt Portable Repeaters | B51: 1 | C51: 8500 | D51: SC Int Comm
A52: 800 MHz 25 Watt Portable Repeaters | B52: 1 | C52: 8500 | D52: SC Int Comm
A53: 800 MHz Conventional Repeaters | B53: 1 | C53: 3934 | D53: SC Int Comm
A54: UHF Conventional Repeater | B54: 1 | C54: 4833 | D54: SC Int Comm
A55: UHF 10 Watt Portable Repeater | B55: 1 | C55: 1063 | D55: SC Int Comm
A56: VHF Conventional Repeater | B56: 1 | C56: 2500 | D56: SC Int Comm
A57: VHF 10 Watt Portable Repeater | B57: 1 | C57: 1063 | D57: SC Int Comm
A58: VHF, UHF & 800 MHz Desk Top Control Station | B58: 1 | C58: 10156 | D58: SC Int Comm
A59: 800 MHz Handheld Radios (Motorola XTS 2500) | B59: 1 | C59: 2500 | D59: SC Int Comm
A60: VHF Handheld Radios | B60: 1 | C60: 800 | D60: SC Int Comm
A61: UHF Handheld Radios | B61: 1 | C61: 806 | D61: SC Int Comm
A62: 6 bay rack chargers | B62: 1 | C62: 639 | D62: SC Int Comm
A63: Law enforcement surveillance equipment | B63: 1 | C63: 5432 | D63: SC Fusion
A64: Mapping/GIS Software | B64: 1 | C64: 40000 | D64: SC Fusion
A65: Data Acquisition Software | B65: 1 | C65: 7040 | D65: SC Fusion
A66: Data Exchange and Interoperability Software of System(s) | B66: 1 | C66: 40000 | D66: SC Fusion
A67: Intelligence Sharing System | B67: 1 | C67: 60000 | D67: SC Fusion
A68: Generator (14,000 Watts) | B68: 2 | C68: 3689 | D68: Home Depot
A69: Generator (7,000 Watts) | B69: 0 | C69: 2300 | D69: SC Int comm.
A70: Video capture software | B70: 1 | C70: 50 | D70: SC Fusion
A71: Document Scanner | B71: 2 | C71: 450 | D71: SC Fusion
A72: Fax Machine: Canon L90 Laser | B72: 2 | C72: 100 | D72: Staples
A73: Printer: HP LaserJet P4014N | B73: 2 | C73: 900 | D73: Staples
A74: Copy Machine: Canon MF6540 | B74: 2 | C74: 500 | D74: Staples
A75: Power strip (six outlet, surge protection) | B75: 10 | C75: 12 | D75: Staples
A76: 40' Extension Cord | B76: 10 | C76: 32 | D76: Staples
A77: Single-unit Rapid Charger | B77: 1 | C77: 60 | D77: SC COBRA
A78: 6 Unit Multi-Charger | B78: 1 | C78: 190 | D78: SC COBRA
A79: Microsoft Office/Adobe Acrobat | B79: 1 | C79: 200 | D79: SC Cit Prep
A80: ACU-1000 | B80: 1 | C80: 100000 | D80: SC Int Comm
A81: DC Power Electrical Rectifier system | B81: 1 | C81: 350 | D81: SC Int Comm

Sheet EquipmentPerimeter
A1: Perimeter Equipment | B1: Quantity | C1: Cost
A2: Mobile Checkpoint Guard Booth | B2: 1 | C2: 18000
A3: Plastic Barriers | B3: 1 | C3: 350
A4: Plastic Fold-up Barriers | B4: 0 | C4: 300
A5: Steel Crowd Control Barriers | B5: 0 | C5: 100
A6: Caution Tape | B6: 0 | C6: 7

Sheet Sheet2
